Publisher Label,Publisher URI,"Supplier","Net Amount (£)","Organisational Unit","Merchant Category Code","Purpose","Payment Date"
"Wolverhampton City Council","http://opendatacommunities.org/id/metropolitan-district-council/wolverhampton","LUL TICKET MACHINE","52.50","Headstart - Learning Technologies Team","4112","Public Transport","31/07/2017"
"Wolverhampton City Council","http://opendatacommunities.org/id/metropolitan-district-council/wolverhampton","1&1 INTERNET LIMITED","9.99","Headstart - Learning Technologies Team","4816","Computing - Purchase of Software","31/07/2017"
"Wolverhampton City Council","http://opendatacommunities.org/id/metropolitan-district-council/wolverhampton","WWW.DONTPANICPROJEC LT","210.00","Communications & Marketing - General","8999","Services - Professional Fees","31/07/2017"
"Wolverhampton City Council","http://opendatacommunities.org/id/metropolitan-district-council/wolverhampton","Virgin Trains","33.00","Communications & Marketing - General","4112","Public Transport","31/07/2017"
"Wolverhampton City Council","http://opendatacommunities.org/id/metropolitan-district-council/wolverhampton","OXFORD PEARTREE STARBU","5.37","Mayoral Expenses","5499","Subsistence","31/07/2017"
"Wolverhampton City Council","http://opendatacommunities.org/id/metropolitan-district-council/wolverhampton","SOMETHING DIFFEREN","69.80","Strategic ICTS (ICT Serv Budget)","5399","Equipment - Purchase","31/07/2017"
"Wolverhampton City Council","http://opendatacommunities.org/id/metropolitan-district-council/wolverhampton","ITUNES.COM/BILL","0.79","Strategic ICTS (ICT Serv Budget)","5735","Computing - Purchase of Software","31/07/2017"
"Wolverhampton City Council","http://opendatacommunities.org/id/metropolitan-district-council/wolverhampton","CUMMINGS BROTHERS LOCK","15.00","Culwell Street Depot","7399","Equipment - R & M","31/07/2017"
"Wolverhampton City Council","http://opendatacommunities.org/id/metropolitan-district-council/wolverhampton","ASDA HOME SHOPPING","96.32","Ernest Bold Court","5411","Provisions (Not for resale)","31/07/2017"
"Wolverhampton City Council","http://opendatacommunities.org/id/metropolitan-district-council/wolverhampton","AMAZON UK RETAIL AMAZO","18.32","Play General","5999","Equipment - Purchase","31/07/2017"
"Wolverhampton City Council","http://opendatacommunities.org/id/metropolitan-district-council/wolverhampton","MOTOCHERWELL VALLEY CO","7.02","Mayoral Expenses","5812","Subsistence","31/07/2017"
"Wolverhampton City Council","http://opendatacommunities.org/id/metropolitan-district-council/wolverhampton","WWW.ARGOS.CO.UK","269.99","EIP Locality 8","5310","Grant Payments","31/07/2017"
"Wolverhampton City Council","http://opendatacommunities.org/id/metropolitan-district-council/wolverhampton","MONSTER UK","190.00","City Direct","7375","Services - Fees and Charges","31/07/2017"
"Wolverhampton City Council","http://opendatacommunities.org/id/metropolitan-district-council/wolverhampton","ARGOS RETAIL GROUP","45.00","LAC Transitions Team","5310","Client Allowances","31/07/2017"
"Wolverhampton City Council","http://opendatacommunities.org/id/metropolitan-district-council/wolverhampton","TVLICENSING.CO.UK","147.00","LAC Transitions Team","7392","Client Allowances","31/07/2017"
"Wolverhampton City Council","http://opendatacommunities.org/id/metropolitan-district-council/wolverhampton","SAINSBURYS SACAT 0775","5.97","Early Years & Universal Service","5411","Provisions (Not for resale)","31/07/2017"
"Wolverhampton City Council","http://opendatacommunities.org/id/metropolitan-district-council/wolverhampton","ARGOS","26.99","Early Years & Universal Service","5310","Equipment - Purchase","31/07/2017"
"Wolverhampton City Council","http://opendatacommunities.org/id/metropolitan-district-council/wolverhampton","JOHNSTONES DEC CENTRE","54.44","Parkfields Centre","5231","Materials","31/07/2017"
"Wolverhampton City Council","http://opendatacommunities.org/id/metropolitan-district-council/wolverhampton","WWW.MAPLIN.CO.UK","49.98","Central Costs","5732","Equipment - Purchase","31/07/2017"
"Wolverhampton City Council","http://opendatacommunities.org/id/metropolitan-district-council/wolverhampton","YOUNG`S SHOE REPAIRS L","70.00","Wolverhampton Indoor and Open Market","7251","Fixtures and Fittings - R&M","31/07/2017"
"Wolverhampton City Council","http://opendatacommunities.org/id/metropolitan-district-council/wolverhampton","ARGOS LTD","3.99","Wolverhampton Indoor and Open Market","5310","Equipment - Purchase","31/07/2017"
"Wolverhampton City Council","http://opendatacommunities.org/id/metropolitan-district-council/wolverhampton","Amazon EU","44.30","Telecare","5969","Stationery","31/07/2017"
"Wolverhampton City Council","http://opendatacommunities.org/id/metropolitan-district-council/wolverhampton","WWW.ARGOS.CO.UK","20.94","CIN/CP Social Work Unit - Area 5","5310","Section 17","31/07/2017"
"Wolverhampton City Council","http://opendatacommunities.org/id/metropolitan-district-council/wolverhampton","AMAZON.CO.UK","65.98","EIP Locality 1","5999","Equipment - Purchase","31/07/2017"
"Wolverhampton City Council","http://opendatacommunities.org/id/metropolitan-district-council/wolverhampton","CLWYD REFRIGERATION","44.00","Towers Outdoor Education Centre","7623","Equipment - R & M","31/07/2017"
"Wolverhampton City Council","http://opendatacommunities.org/id/metropolitan-district-council/wolverhampton","PAYPAL  THCUK","63.90","Education Catering - General Overheads","4812","Comms - Mobile Telephones","31/07/2017"
"Wolverhampton City Council","http://opendatacommunities.org/id/metropolitan-district-council/wolverhampton","HALFORDS 0775","25.38","Play General","5940","Equipment - Purchase","31/07/2017"
"Wolverhampton City Council","http://opendatacommunities.org/id/metropolitan-district-council/wolverhampton","Amazon Prime","6.66","Global Budgets","5968","Subscriptions","31/07/2017"
"Wolverhampton City Council","http://opendatacommunities.org/id/metropolitan-district-council/wolverhampton","EE & T-MOBILE","178.62","Civic Halls Non Direct Management A/C","4814","Comms - Telephone Call charges","31/07/2017"
"Wolverhampton City Council","http://opendatacommunities.org/id/metropolitan-district-council/wolverhampton","Trainline","56.61","CIN/CP Social Work Unit - Area 4","4112","No Recourse to Public Funds","31/07/2017"
"Wolverhampton City Council","http://opendatacommunities.org/id/metropolitan-district-council/wolverhampton","WELDTITE PRODUCTS LTD","204.86","Travelwise","5940","Equipment - Purchase","31/07/2017"
"Wolverhampton City Council","http://opendatacommunities.org/id/metropolitan-district-council/wolverhampton","WWW.SEVERNTRENTSEARCHE","564.00","Legal Services","4900","Electricity","31/07/2017"
"Wolverhampton City Council","http://opendatacommunities.org/id/metropolitan-district-council/wolverhampton","WWW.SEVERNTRENTSEARCHE","564.00","Legal Services","4900","Electricity","31/07/2017"
"Wolverhampton City Council","http://opendatacommunities.org/id/metropolitan-district-council/wolverhampton","WWW.SEVERNTRENTSEARCHE","564.00","Legal Services","4900","Electricity","31/07/2017"
"Wolverhampton City Council","http://opendatacommunities.org/id/metropolitan-district-council/wolverhampton","WWW.SEVERNTRENTSEARCHE","564.00","Legal Services","4900","Electricity","31/07/2017"
"Wolverhampton City Council","http://opendatacommunities.org/id/metropolitan-district-council/wolverhampton","WWW.SEVERNTRENTSEARCHE","564.00","Legal Services","4900","Electricity","31/07/2017"
"Wolverhampton City Council","http://opendatacommunities.org/id/metropolitan-district-council/wolverhampton","WWW.SEVERNTRENTSEARCHE","564.00","Legal Services","4900","Electricity","31/07/2017"
"Wolverhampton City Council","http://opendatacommunities.org/id/metropolitan-district-council/wolverhampton","Virgin Trains","193.00","Fostering Team & Allowances","4112","Public Transport","31/07/2017"
"Wolverhampton City Council","http://opendatacommunities.org/id/metropolitan-district-council/wolverhampton","RESCROFT LTD","39.92","Fleet Management","5531","Equipment - Purchase","31/07/2017"
"Wolverhampton City Council","http://opendatacommunities.org/id/metropolitan-district-council/wolverhampton","PREMIER INN","309.00","CIN/CP Social Work Unit - Area 7","3811","Section 17","31/07/2017"
"Wolverhampton City Council","http://opendatacommunities.org/id/metropolitan-district-council/wolverhampton","MIDLANDS HOMES LTD","185.00","CIN/CP Social Work Unit - Area 7","1711","Section 17","31/07/2017"
"Wolverhampton City Council","http://opendatacommunities.org/id/metropolitan-district-council/wolverhampton","Akzonobel","144.93","Maintenance of Exhibits","5198","Materials","31/07/2017"
"Wolverhampton City Council","http://opendatacommunities.org/id/metropolitan-district-council/wolverhampton","Amazon UK Marketplace","139.00","Planning","5942","Equipment - Purchase","31/07/2017"
"Wolverhampton City Council","http://opendatacommunities.org/id/metropolitan-district-council/wolverhampton","Trainline","29.83","CIN/CP Social Work Unit - Area 7","4112","No Recourse to Public Funds","28/07/2017"
"Wolverhampton City Council","http://opendatacommunities.org/id/metropolitan-district-council/wolverhampton","THE COAL AUTHORITY","658.80","Legal Services","9399","Services - Fees and Charges","28/07/2017"
"Wolverhampton City Council","http://opendatacommunities.org/id/metropolitan-district-council/wolverhampton","Trainline","91.29","CIN/CP Social Work Unit - Area 8","4112","Section 17","28/07/2017"
"Wolverhampton City Council","http://opendatacommunities.org/id/metropolitan-district-council/wolverhampton","NEXT RETAIL LTD","22.00","LAC Transitions Team","5651","Client Allowances","28/07/2017"
"Wolverhampton City Council","http://opendatacommunities.org/id/metropolitan-district-council/wolverhampton","J D SPORTS 595","68.37","LAC Transitions Team","5941","Client Allowances","28/07/2017"
"Wolverhampton City Council","http://opendatacommunities.org/id/metropolitan-district-council/wolverhampton","CARPETTILES","492.40","Maintenance of Exhibits","5169","Materials","28/07/2017"
"Wolverhampton City Council","http://opendatacommunities.org/id/metropolitan-district-council/wolverhampton","Virgin Trains","230.60","Planning","4112","Public Transport","28/07/2017"
"Wolverhampton City Council","http://opendatacommunities.org/id/metropolitan-district-council/wolverhampton","WWW.ICO.GOV.UK","35.00","Members Expenses","9399","Subscriptions","28/07/2017"
"Wolverhampton City Council","http://opendatacommunities.org/id/metropolitan-district-council/wolverhampton","LUL TICKET MACHINE","36.90","Headstart - Learning Technologies Team","4112","Public Transport","28/07/2017"
"Wolverhampton City Council","http://opendatacommunities.org/id/metropolitan-district-council/wolverhampton","TICKET OFFICE-INTE","597.00","Communications & Marketing - General","7997","Educ Trips, Holidays, Outings, Activity","28/07/2017"
"Wolverhampton City Council","http://opendatacommunities.org/id/metropolitan-district-council/wolverhampton","LOYD WEDNESFIELD WOLVE","200.00","EIP Locality 8","6011","Grant Payments","28/07/2017"
"Wolverhampton City Council","http://opendatacommunities.org/id/metropolitan-district-council/wolverhampton","Virgin Trains","127.00","LAC Transitions Team","4112","Client Allowances","28/07/2017"
"Wolverhampton City Council","http://opendatacommunities.org/id/metropolitan-district-council/wolverhampton","TESCO STORES 5397","6.59","EIP Locality 1","5411","Provisions (Not for resale)","28/07/2017"
"Wolverhampton City Council","http://opendatacommunities.org/id/metropolitan-district-council/wolverhampton","BEVERLEY HOTEL LTD - T","70.00","MASH","7011","Services - Supplies & Services to users","28/07/2017"
"Wolverhampton City Council","http://opendatacommunities.org/id/metropolitan-district-council/wolverhampton","TESCO STORES 5194","42.23","Towers Outdoor Education Centre","5411","Provisions (Not for resale)","28/07/2017"
"Wolverhampton City Council","http://opendatacommunities.org/id/metropolitan-district-council/wolverhampton","Amazon UK Marketplace","10.54","Global Budgets","5942","Books","28/07/2017"
"Wolverhampton City Council","http://opendatacommunities.org/id/metropolitan-district-council/wolverhampton","Amazon UK Marketplace","8.15","Global Budgets","5942","Books","28/07/2017"
"Wolverhampton City Council","http://opendatacommunities.org/id/metropolitan-district-council/wolverhampton","WILKO RETAIL LIMIT","15.00","EIP Locality 3","5722","Financial Assistance In Exceptional Circ","28/07/2017"
"Wolverhampton City Council","http://opendatacommunities.org/id/metropolitan-district-council/wolverhampton","Amazon UK Marketplace","10.41","Play General","5942","Books","28/07/2017"
"Wolverhampton City Council","http://opendatacommunities.org/id/metropolitan-district-council/wolverhampton","WM MORRISONS","15.50","EIP Locality 6","5411","Provisions (Not for resale)","28/07/2017"
"Wolverhampton City Council","http://opendatacommunities.org/id/metropolitan-district-council/wolverhampton","WM MORRISONS","78.29","EIP Locality 6","5411","Provisions (Not for resale)","28/07/2017"
"Wolverhampton City Council","http://opendatacommunities.org/id/metropolitan-district-council/wolverhampton","WILKO RETAIL LIMIT","19.25","Central Costs","5722","Equipment - Purchase","28/07/2017"
"Wolverhampton City Council","http://opendatacommunities.org/id/metropolitan-district-council/wolverhampton","CUMMINGS BROTHERS LOCK","11.00","Cleaning of Buildings - General","7399","Equipment - Purchase","28/07/2017"
"Wolverhampton City Council","http://opendatacommunities.org/id/metropolitan-district-council/wolverhampton","AMAZON.CO.UK","20.50","Play General","5999","Equipment - Purchase","28/07/2017"
"Wolverhampton City Council","http://opendatacommunities.org/id/metropolitan-district-council/wolverhampton","SCREWFIX DIRECT LT","22.00","Play General","5211","Materials","28/07/2017"
"Wolverhampton City Council","http://opendatacommunities.org/id/metropolitan-district-council/wolverhampton","Amazon UK Marketplace","23.30","Safeguarding Admin Resource","5942","Stationery","28/07/2017"
"Wolverhampton City Council","http://opendatacommunities.org/id/metropolitan-district-council/wolverhampton","WWW.PPLUK.COM","124.55","Art Gallery","8699","Services - General Licences","28/07/2017"
"Wolverhampton City Council","http://opendatacommunities.org/id/metropolitan-district-council/wolverhampton","ARGOS LTD","27.97","CIN/CP Social Work Unit - Area 7","5310","Section 17","28/07/2017"
"Wolverhampton City Council","http://opendatacommunities.org/id/metropolitan-district-council/wolverhampton","CURRYS S/S","125.81","Headstart - Learning Technologies Team","5732","Equipment - Purchase","27/07/2017"
"Wolverhampton City Council","http://opendatacommunities.org/id/metropolitan-district-council/wolverhampton","FACEBK L4MRTDSAR2","499.56","Communications & Marketing - General","7311","Marketing \ Non-staff advertising","27/07/2017"
"Wolverhampton City Council","http://opendatacommunities.org/id/metropolitan-district-council/wolverhampton","Trainline","84.86","CIN/CP Social Work Unit - Area 4","4112","Public Transport","27/07/2017"
"Wolverhampton City Council","http://opendatacommunities.org/id/metropolitan-district-council/wolverhampton","SUITES AND BEDS","300.00","CIN/CP Social Work Unit - Area 7","5712","Section 17","27/07/2017"
"Wolverhampton City Council","http://opendatacommunities.org/id/metropolitan-district-council/wolverhampton","GO CARZ","5.68","Legal Services","4121","Client Transport","27/07/2017"
"Wolverhampton City Council","http://opendatacommunities.org/id/metropolitan-district-council/wolverhampton","REDWINGS LODGE","58.29","CIN/CP Social Work Unit - Area 3","7011","Section 17","27/07/2017"
"Wolverhampton City Council","http://opendatacommunities.org/id/metropolitan-district-council/wolverhampton","TFM FARM & COUNTRY SUP","54.74","Northicote Farm","5399","Equipment - Purchase","27/07/2017"
"Wolverhampton City Council","http://opendatacommunities.org/id/metropolitan-district-council/wolverhampton","TFM FARM & COUNTRY SUP","83.87","Northicote Farm","5399","Equipment - Purchase","27/07/2017"
"Wolverhampton City Council","http://opendatacommunities.org/id/metropolitan-district-council/wolverhampton","SUITES AND BEDS","248.33","CIN/CP Social Work Unit - Area 7","5712","Section 17","27/07/2017"
"Wolverhampton City Council","http://opendatacommunities.org/id/metropolitan-district-council/wolverhampton","Amazon UK Marketplace","32.48","Parks - Ranger Service","5942","Equipment - Purchase","27/07/2017"
"Wolverhampton City Council","http://opendatacommunities.org/id/metropolitan-district-council/wolverhampton","Amazon UK Marketplace","10.04","Parks - Ranger Service","5942","Equipment - Purchase","27/07/2017"
"Wolverhampton City Council","http://opendatacommunities.org/id/metropolitan-district-council/wolverhampton","Amazon UK Marketplace","16.93","Parks - Management and Admin","5942","Books","27/07/2017"
"Wolverhampton City Council","http://opendatacommunities.org/id/metropolitan-district-council/wolverhampton","POST OFFICE COUNTER","12.90","Adoption and Residence Team & Allowances","9402","Comms - Postage","27/07/2017"
"Wolverhampton City Council","http://opendatacommunities.org/id/metropolitan-district-council/wolverhampton","WWW.DAVIESTIMBER.CO.UK","1032.10","Michael Lyons","5211","Materials","27/07/2017"
"Wolverhampton City Council","http://opendatacommunities.org/id/metropolitan-district-council/wolverhampton","RS COMPONENTS","38.05","Technical Support","5065","Equipment - R & M","27/07/2017"
"Wolverhampton City Council","http://opendatacommunities.org/id/metropolitan-district-council/wolverhampton","CURRYS ONLINE","282.50","Global Budgets","5732","Equipment - Purchase","27/07/2017"
"Wolverhampton City Council","http://opendatacommunities.org/id/metropolitan-district-council/wolverhampton","Amazon EU","14.99","Global Budgets","5969","Equipment - Purchase","27/07/2017"
"Wolverhampton City Council","http://opendatacommunities.org/id/metropolitan-district-council/wolverhampton","ASDA SUPERSTORE","30.42","EIP Locality 3","5411","Equipment - Purchase","27/07/2017"
"Wolverhampton City Council","http://opendatacommunities.org/id/metropolitan-district-council/wolverhampton","Trainline","70.72","EIP Locality 4","4112","Public Transport","27/07/2017"
"Wolverhampton City Council","http://opendatacommunities.org/id/metropolitan-district-council/wolverhampton","UOM MUSEUM SHOP","10.50","Education And Access","8220","Books","27/07/2017"
"Wolverhampton City Council","http://opendatacommunities.org/id/metropolitan-district-council/wolverhampton","AMAZON UK RETAIL AMAZO","50.99","Research & Development","5999","Books","27/07/2017"
"Wolverhampton City Council","http://opendatacommunities.org/id/metropolitan-district-council/wolverhampton","GO OUTDOORS","274.70","Play General","5941","Equipment - Purchase","27/07/2017"
"Wolverhampton City Council","http://opendatacommunities.org/id/metropolitan-district-council/wolverhampton","B&M RETAIL LTD","335.10","LAC Transitions Team","5310","Client Allowances","27/07/2017"
"Wolverhampton City Council","http://opendatacommunities.org/id/metropolitan-district-council/wolverhampton","Amazon UK Marketplace","12.47","Safeguarding Admin Resource","5942","Computing - Consumables","27/07/2017"
"Wolverhampton City Council","http://opendatacommunities.org/id/metropolitan-district-council/wolverhampton","Amazon UK Marketplace","5.21","Court of Protection, Funerals Prot Prop","5942","Protective Clothing","27/07/2017"
"Wolverhampton City Council","http://opendatacommunities.org/id/metropolitan-district-council/wolverhampton","CINEWORLD","24.17","CIN/CP Social Work Unit - Area 3","7922","Section 17","27/07/2017"
"Wolverhampton City Council","http://opendatacommunities.org/id/metropolitan-district-council/wolverhampton","WWW.STAPLES.CO.UK","73.97","Macmillan Welfare Rights","5943","Stationery","27/07/2017"
"Wolverhampton City Council","http://opendatacommunities.org/id/metropolitan-district-council/wolverhampton","TOTALJOBS GROUP LTD","149.00","City Direct","2741","Publications","27/07/2017"
"Wolverhampton City Council","http://opendatacommunities.org/id/metropolitan-district-council/wolverhampton","UXPIN.COM","78.32","City Direct","7372","Computing - Purchase of Software","27/07/2017"
"Wolverhampton City Council","http://opendatacommunities.org/id/metropolitan-district-council/wolverhampton","Virgin Trains","218.40","Adoption and Residence Team & Allowances","4112","Public Transport","27/07/2017"
"Wolverhampton City Council","http://opendatacommunities.org/id/metropolitan-district-council/wolverhampton","HOMEBASE LTD 103","30.36","Early Years & Universal Service","5211","Materials","27/07/2017"
"Wolverhampton City Council","http://opendatacommunities.org/id/metropolitan-district-council/wolverhampton","B & Q 1243","31.13","Public Conveniences","5211","Materials","27/07/2017"
"Wolverhampton City Council","http://opendatacommunities.org/id/metropolitan-district-council/wolverhampton","WEST COAST TRAINS","99.90","Strategic ICTS (ICT Serv Budget)","4112","Public Transport","27/07/2017"
"Wolverhampton City Council","http://opendatacommunities.org/id/metropolitan-district-council/wolverhampton","WWW.ARGOS.CO.UK","26.93","LAC Transitions Team","5310","Client Allowances","27/07/2017"
"Wolverhampton City Council","http://opendatacommunities.org/id/metropolitan-district-council/wolverhampton","PRIMARK","73.00","IMPACT","5651","Clothing / Uniforms","27/07/2017"
"Wolverhampton City Council","http://opendatacommunities.org/id/metropolitan-district-council/wolverhampton","PRIMARK","31.00","IMPACT","5651","Clothing / Uniforms","27/07/2017"
"Wolverhampton City Council","http://opendatacommunities.org/id/metropolitan-district-council/wolverhampton","Amazon UK Marketplace","4.18","EIP Locality 1","5942","Equipment - Purchase","27/07/2017"
"Wolverhampton City Council","http://opendatacommunities.org/id/metropolitan-district-council/wolverhampton","WEST MID TRAVEL","446.85","Community Enablement","4131","Public Transport","27/07/2017"
"Wolverhampton City Council","http://opendatacommunities.org/id/metropolitan-district-council/wolverhampton","WM MORRISON 024","2.92","Bert Williams Leisure Centre","5411","Provisions (Not for resale)","26/07/2017"
"Wolverhampton City Council","http://opendatacommunities.org/id/metropolitan-district-council/wolverhampton","WWW.STAPLES.CO.UK","5.98","Macmillan Welfare Rights","5943","Stationery","26/07/2017"
"Wolverhampton City Council","http://opendatacommunities.org/id/metropolitan-district-council/wolverhampton","WWW.INVESTERSINPEOPLEM","94.97","City Direct","5999","Equipment - Purchase","26/07/2017"
"Wolverhampton City Council","http://opendatacommunities.org/id/metropolitan-district-council/wolverhampton","Trainline","77.21","LAC Education Team (LACE)","4112","Public Transport","26/07/2017"
"Wolverhampton City Council","http://opendatacommunities.org/id/metropolitan-district-council/wolverhampton","B&M RETAIL","1.67","LAC Transitions Team","5310","Client Allowances","26/07/2017"
"Wolverhampton City Council","http://opendatacommunities.org/id/metropolitan-district-council/wolverhampton","B&M RETAIL","207.39","LAC Transitions Team","5310","Client Allowances","26/07/2017"
"Wolverhampton City Council","http://opendatacommunities.org/id/metropolitan-district-council/wolverhampton","WWW.BEDS.CO.UK","307.50","LAC Transitions Team","5712","Client Allowances","26/07/2017"
"Wolverhampton City Council","http://opendatacommunities.org/id/metropolitan-district-council/wolverhampton","SAINSBURYS 2040","1.20","Early Years & Universal Service","5411","Provisions (Not for resale)","26/07/2017"
"Wolverhampton City Council","http://opendatacommunities.org/id/metropolitan-district-council/wolverhampton","SAINSBURYS 2040","16.74","Early Years & Universal Service","5411","Provisions (Not for resale)","26/07/2017"
"Wolverhampton City Council","http://opendatacommunities.org/id/metropolitan-district-council/wolverhampton","BRITANNIA","37.92","Emergency Duty Team","7011","Services - Supplies & Services to users","26/07/2017"
"Wolverhampton City Council","http://opendatacommunities.org/id/metropolitan-district-council/wolverhampton","TESCO DIRECT","199.00","LAC Transitions Team","5999","Client Allowances","26/07/2017"
"Wolverhampton City Council","http://opendatacommunities.org/id/metropolitan-district-council/wolverhampton","NATIONAL EXPRESS LIMIT","26.00","LAC Transitions Team","4131","Client Allowances","26/07/2017"
"Wolverhampton City Council","http://opendatacommunities.org/id/metropolitan-district-council/wolverhampton","GRO HM PASSPORT OFFICE","29.85","LAC Transitions Team","9399","Client Allowances","26/07/2017"
"Wolverhampton City Council","http://opendatacommunities.org/id/metropolitan-district-council/wolverhampton","EB  THE DEAL CONFERENC","297.00","Delivery & OCE Development","7399","Conference Expenses","26/07/2017"
"Wolverhampton City Council","http://opendatacommunities.org/id/metropolitan-district-council/wolverhampton","THE QUEEN VICTORIA HOT","230.00","Emergency Duty Team","7011","Services - Supplies & Services to users","26/07/2017"
"Wolverhampton City Council","http://opendatacommunities.org/id/metropolitan-district-council/wolverhampton","WM MORRISONS","149.79","Upper Pendeford Farm Childrens Home","5411","Provisions (Not for resale)","26/07/2017"
"Wolverhampton City Council","http://opendatacommunities.org/id/metropolitan-district-council/wolverhampton","ASDA HOME SHOPPING","2.50","Upper Pendeford Farm Childrens Home","5411","Provisions (Not for resale)","26/07/2017"
"Wolverhampton City Council","http://opendatacommunities.org/id/metropolitan-district-council/wolverhampton","TESCO STORES 5194","82.06","Towers Outdoor Education Centre","5411","Provisions (Not for resale)","26/07/2017"
"Wolverhampton City Council","http://opendatacommunities.org/id/metropolitan-district-council/wolverhampton","O E METCALFE","290.45","Towers Outdoor Education Centre","5499","Provisions (Not for resale)","26/07/2017"
"Wolverhampton City Council","http://opendatacommunities.org/id/metropolitan-district-council/wolverhampton","STERMAT CAR AND VA","1452.02","Towers Outdoor Education Centre","5541","Hire of Vehicles","26/07/2017"
"Wolverhampton City Council","http://opendatacommunities.org/id/metropolitan-district-council/wolverhampton","STERMAT CAR AND VA","571.20","Towers Outdoor Education Centre","5541","Hire of Vehicles","26/07/2017"
"Wolverhampton City Council","http://opendatacommunities.org/id/metropolitan-district-council/wolverhampton","ASDA SUPERSTORE","16.68","EIP Locality 3","5411","Provisions (Not for resale)","26/07/2017"
"Wolverhampton City Council","http://opendatacommunities.org/id/metropolitan-district-council/wolverhampton","COMFORT BEDS AND F","229.17","LAC Transitions Team","5712","Client Allowances","26/07/2017"
"Wolverhampton City Council","http://opendatacommunities.org/id/metropolitan-district-council/wolverhampton","PAYPAL  GEOED LTD","440.00","Jane & Louise Wilson","5999","Materials","26/07/2017"
"Wolverhampton City Council","http://opendatacommunities.org/id/metropolitan-district-council/wolverhampton","PURE360","300.00","Audience Development","7372","Marketing \ Non-staff advertising","26/07/2017"
"Wolverhampton City Council","http://opendatacommunities.org/id/metropolitan-district-council/wolverhampton","Amazon UK Marketplace","23.99","Jane & Louise Wilson","5942","Materials","26/07/2017"
"Wolverhampton City Council","http://opendatacommunities.org/id/metropolitan-district-council/wolverhampton","Amazon UK Marketplace","9.79","Jane & Louise Wilson","5942","Materials","26/07/2017"
"Wolverhampton City Council","http://opendatacommunities.org/id/metropolitan-district-council/wolverhampton","IMM HEALTH SURCHARGE I","500.00","CIN/CP Social Work Unit - Area 3","9399","No Recourse to Public Funds","26/07/2017"
"Wolverhampton City Council","http://opendatacommunities.org/id/metropolitan-district-council/wolverhampton","REGISTRARS OFFICE","180.00","Adoption and Residence Team & Allowances","8299","Services - Fees and Charges","26/07/2017"
"Wolverhampton City Council","http://opendatacommunities.org/id/metropolitan-district-council/wolverhampton","000002200500000","250.00","CIN/CP Social Work Unit - Area 6","6011","Section 17","26/07/2017"
"Wolverhampton City Council","http://opendatacommunities.org/id/metropolitan-district-council/wolverhampton","AMMERHURST LTD","14.93","CIN/CP Social Work Unit - Area 6","7251","Fixtures and Fittings - R&M","26/07/2017"
"Wolverhampton City Council","http://opendatacommunities.org/id/metropolitan-district-council/wolverhampton","HIGHFIELD HOUSE HO","385.00","CIN/CP Social Work Unit - Area 3","7011","Accommodation Costs","26/07/2017"
"Wolverhampton City Council","http://opendatacommunities.org/id/metropolitan-district-council/wolverhampton","Amazon UK Marketplace","114.99","EIP Locality 5","5942","Grant Payments","26/07/2017"
"Wolverhampton City Council","http://opendatacommunities.org/id/metropolitan-district-council/wolverhampton","POUNDSTRETCHER 147","8.97","Central Costs","5714","Equipment - Purchase","26/07/2017"
"Wolverhampton City Council","http://opendatacommunities.org/id/metropolitan-district-council/wolverhampton","WOLVERHAMPTON CC","2.50","Headstart Phase 3","7523","Parking Fees","26/07/2017"
"Wolverhampton City Council","http://opendatacommunities.org/id/metropolitan-district-council/wolverhampton","WOLVERHAMPTON CC","2.50","Headstart Phase 3","7523","Parking Fees","26/07/2017"
"Wolverhampton City Council","http://opendatacommunities.org/id/metropolitan-district-council/wolverhampton","SAINSBURYS (2340)","5.50","Connexions Contract","5411","Provisions (Not for resale)","26/07/2017"
"Wolverhampton City Council","http://opendatacommunities.org/id/metropolitan-district-council/wolverhampton","WWW.TRANSPORTXTRA.COM","130.00","Travelwise","7399","Subscriptions","26/07/2017"
"Wolverhampton City Council","http://opendatacommunities.org/id/metropolitan-district-council/wolverhampton","REDWINGS LODGE","49.96","CIN/CP Social Work Unit - Area 3","7011","Services - Supplies & Services to users","26/07/2017"
"Wolverhampton City Council","http://opendatacommunities.org/id/metropolitan-district-council/wolverhampton","REDWINGS LODGE","4.99","CIN/CP Social Work Unit - Area 3","7011","Services - Supplies & Services to users","26/07/2017"
"Wolverhampton City Council","http://opendatacommunities.org/id/metropolitan-district-council/wolverhampton","ASDA SUPERSTORE","60.42","MASH","5411","Provisions (Not for resale)","26/07/2017"
"Wolverhampton City Council","http://opendatacommunities.org/id/metropolitan-district-council/wolverhampton","WM MORRISONS","7.80","Head of Service - CINCP","5411","Provisions (Not for resale)","26/07/2017"
"Wolverhampton City Council","http://opendatacommunities.org/id/metropolitan-district-council/wolverhampton","WOLVERHAMPTON TROPHY C","9.99","Global Budgets","5999","Equipment - Purchase","26/07/2017"
"Wolverhampton City Council","http://opendatacommunities.org/id/metropolitan-district-council/wolverhampton","SUITES AND BEDS","500.00","LAC Transitions Team","5712","Client Allowances","26/07/2017"
"Wolverhampton City Council","http://opendatacommunities.org/id/metropolitan-district-council/wolverhampton","TV LICENSING","147.00","Duke Street Bungalows","7392","Services - General Licences","26/07/2017"
"Wolverhampton City Council","http://opendatacommunities.org/id/metropolitan-district-council/wolverhampton","TV LICENSING","147.00","Duke Street Bungalows","7392","Services - General Licences","26/07/2017"
"Wolverhampton City Council","http://opendatacommunities.org/id/metropolitan-district-council/wolverhampton","PUPPETS BY POST","102.92","Jane & Louise Wilson","5945","Materials","26/07/2017"
"Wolverhampton City Council","http://opendatacommunities.org/id/metropolitan-district-council/wolverhampton","DINOSAURTIME.CO.UK","120.00","Jane & Louise Wilson","5945","Materials","26/07/2017"
"Wolverhampton City Council","http://opendatacommunities.org/id/metropolitan-district-council/wolverhampton","SAINSBURYS SACAT 2040","5.50","Education Catering - General Overheads","5411","School Meals","26/07/2017"
"Wolverhampton City Council","http://opendatacommunities.org/id/metropolitan-district-council/wolverhampton","Trainline","85.83","CIN/CP Social Work Unit - Area 5","4112","Section 17","26/07/2017"
"Wolverhampton City Council","http://opendatacommunities.org/id/metropolitan-district-council/wolverhampton","CARVER/WOLVERHAMPTON/L","-29.70","Arbor Scheme","5211","Materials","26/07/2017"
"Wolverhampton City Council","http://opendatacommunities.org/id/metropolitan-district-council/wolverhampton","CARVER/WOLVERHAMPTON/L","-29.70","Arbor Scheme","5211","Materials","26/07/2017"
"Wolverhampton City Council","http://opendatacommunities.org/id/metropolitan-district-council/wolverhampton","CARVER/WOLVERHAMPTON/L","39.98","Arbor Scheme","5211","Materials","26/07/2017"
"Wolverhampton City Council","http://opendatacommunities.org/id/metropolitan-district-council/wolverhampton","CARVER/WOLVERHAMPTON/L","113.42","Arbor Scheme","5211","Materials","26/07/2017"
"Wolverhampton City Council","http://opendatacommunities.org/id/metropolitan-district-council/wolverhampton","Amazon UK Marketplace","28.32","Street Cleansing Overheads","5942","Equipment - Purchase","26/07/2017"
"Wolverhampton City Council","http://opendatacommunities.org/id/metropolitan-district-council/wolverhampton","Virgin Trains","69.70","Information Governance Team","4112","Public Transport","26/07/2017"
"Wolverhampton City Council","http://opendatacommunities.org/id/metropolitan-district-council/wolverhampton","THE QUEEN VICTORIA HOT","180.00","Emergency Duty Team","7011","Services - Supplies & Services to users","25/07/2017"
"Wolverhampton City Council","http://opendatacommunities.org/id/metropolitan-district-council/wolverhampton","CURRYS ONLINE","28.32","Central Costs","5732","Equipment - Purchase","25/07/2017"
"Wolverhampton City Council","http://opendatacommunities.org/id/metropolitan-district-council/wolverhampton","WILKO RETAIL LIMIT","12.00","Creative Studies Delivery Area","5722","Equipment - Purchase","25/07/2017"
"Wolverhampton City Council","http://opendatacommunities.org/id/metropolitan-district-council/wolverhampton","SIGNGEER LTD","490.45","Creative Studies Delivery Area","7399","Equipment - Purchase","25/07/2017"
"Wolverhampton City Council","http://opendatacommunities.org/id/metropolitan-district-council/wolverhampton","Trainline","33.41","Research & Development","4112","Public Transport","25/07/2017"
"Wolverhampton City Council","http://opendatacommunities.org/id/metropolitan-district-council/wolverhampton","WOLVERHAMPTON CC","3.33","Headstart Phase 3","7523","Parking Fees","25/07/2017"
"Wolverhampton City Council","http://opendatacommunities.org/id/metropolitan-district-council/wolverhampton","B&M RETAIL","3.32","Headstart Phase 3","5310","Equipment - Purchase","25/07/2017"
"Wolverhampton City Council","http://opendatacommunities.org/id/metropolitan-district-council/wolverhampton","CT WOLVERHAMPTON","85.00","EIP Locality 1","8398","Services - Supplies & Services to users","25/07/2017"
"Wolverhampton City Council","http://opendatacommunities.org/id/metropolitan-district-council/wolverhampton","PROTECTMASK.CO.UK","51.80","Telecare","8099","Equipment - Health and Safety","25/07/2017"
"Wolverhampton City Council","http://opendatacommunities.org/id/metropolitan-district-council/wolverhampton","SCREWFIX DIRECT LT","119.30","Cleaning of Buildings - General","5211","Materials","25/07/2017"
"Wolverhampton City Council","http://opendatacommunities.org/id/metropolitan-district-council/wolverhampton","TESCO DIRECT","17.50","EIP Locality 1","5999","Grant Payments","25/07/2017"
"Wolverhampton City Council","http://opendatacommunities.org/id/metropolitan-district-council/wolverhampton","TESCO - Childrens Room","12.94","EIP Locality 1","5999","Grant Payments","25/07/2017"
"Wolverhampton City Council","http://opendatacommunities.org/id/metropolitan-district-council/wolverhampton","ARGOS DIRECT","-12.49","Vulnerable Young Persons Team","5310","Equipment - Purchase","25/07/2017"
"Wolverhampton City Council","http://opendatacommunities.org/id/metropolitan-district-council/wolverhampton","ASDA HOME SHOPPING","77.73","Ernest Bold Court","5411","Provisions (Not for resale)","25/07/2017"
"Wolverhampton City Council","http://opendatacommunities.org/id/metropolitan-district-council/wolverhampton","Amazon UK Marketplace","36.79","Environmental Health - Pub Prot - Gen","5942","Equipment - Purchase","25/07/2017"
"Wolverhampton City Council","http://opendatacommunities.org/id/metropolitan-district-council/wolverhampton","ARGOS RETAIL GROUP","283.32","Civic Halls Non Direct Management A/C","5310","Equipment - Purchase","25/07/2017"
"Wolverhampton City Council","http://opendatacommunities.org/id/metropolitan-district-council/wolverhampton","ARGOS RETAIL GROUP","41.65","Civic Halls Non Direct Management A/C","5310","Equipment - Purchase","25/07/2017"
"Wolverhampton City Council","http://opendatacommunities.org/id/metropolitan-district-council/wolverhampton","SAINSBURYS SACAT (2340","38.00","Civic Centre Catering","5411","Provisions (Not for resale)","25/07/2017"
"Wolverhampton City Council","http://opendatacommunities.org/id/metropolitan-district-council/wolverhampton","ASDA STORES","107.00","CIN/CP Social Work Unit - Area 7","5411","Section 17","25/07/2017"
"Wolverhampton City Council","http://opendatacommunities.org/id/metropolitan-district-council/wolverhampton","Virgin Trains","84.40","Research & Development","4112","Public Transport","25/07/2017"
"Wolverhampton City Council","http://opendatacommunities.org/id/metropolitan-district-council/wolverhampton","SP  AUTODATA LIMITED","87.50","Fleet Management","5734","Stationery","25/07/2017"
"Wolverhampton City Council","http://opendatacommunities.org/id/metropolitan-district-council/wolverhampton","Amazon UK Marketplace","9.58","Parks - East Area Management","5942","Equipment - Purchase","25/07/2017"
"Wolverhampton City Council","http://opendatacommunities.org/id/metropolitan-district-council/wolverhampton","HOME BARGAINS","24.50","Headstart Phase 3","5251","Equipment - Purchase","25/07/2017"
"Wolverhampton City Council","http://opendatacommunities.org/id/metropolitan-district-council/wolverhampton","SAINSBURYS 2040","10.00","Headstart Phase 3","5411","Provisions (Not for resale)","25/07/2017"
"Wolverhampton City Council","http://opendatacommunities.org/id/metropolitan-district-council/wolverhampton","WOLVERHAMPTON CC","12.50","IMPACT","7523","Car Allowances","25/07/2017"
"Wolverhampton City Council","http://opendatacommunities.org/id/metropolitan-district-council/wolverhampton","B&M RETAIL","143.06","LAC Transitions Team","5310","Client Allowances","25/07/2017"
"Wolverhampton City Council","http://opendatacommunities.org/id/metropolitan-district-council/wolverhampton","DUNELM (SOFT FURNISHIN","7.99","LAC Transitions Team","5714","Client Allowances","25/07/2017"
"Wolverhampton City Council","http://opendatacommunities.org/id/metropolitan-district-council/wolverhampton","DUNELM (SOFT FURNISHIN","47.99","LAC Transitions Team","5714","Client Allowances","25/07/2017"
"Wolverhampton City Council","http://opendatacommunities.org/id/metropolitan-district-council/wolverhampton","WILKO RETAIL LIMIT","40.95","LAC Transitions Team","5722","Client Allowances","25/07/2017"
"Wolverhampton City Council","http://opendatacommunities.org/id/metropolitan-district-council/wolverhampton","ARGOS LTD","101.97","LAC Transitions Team","5310","Client Allowances","25/07/2017"
"Wolverhampton City Council","http://opendatacommunities.org/id/metropolitan-district-council/wolverhampton","CASH GENERATOR","199.99","LAC Transitions Team","5999","Client Allowances","25/07/2017"
"Wolverhampton City Council","http://opendatacommunities.org/id/metropolitan-district-council/wolverhampton","POST OFFICE COUNTER","9.10","EIP Locality 6","9402","Comms - Postage","25/07/2017"
"Wolverhampton City Council","http://opendatacommunities.org/id/metropolitan-district-council/wolverhampton","WILKO RETAIL LIMIT","2.50","Intensive Family Support Team","5722","Equipment - Purchase","25/07/2017"
"Wolverhampton City Council","http://opendatacommunities.org/id/metropolitan-district-council/wolverhampton","PP CHILDFAMILY","27.50","Intensive Family Support Team","8299","Training Expenses","25/07/2017"
"Wolverhampton City Council","http://opendatacommunities.org/id/metropolitan-district-council/wolverhampton","MARKS&SPENCER PLC SACA","43.00","Admin & Support","5411","Provisions (Not for resale)","24/07/2017"
"Wolverhampton City Council","http://opendatacommunities.org/id/metropolitan-district-council/wolverhampton","ALDI 94 772        S","43.09","Admin & Support","5411","Provisions (Not for resale)","24/07/2017"
"Wolverhampton City Council","http://opendatacommunities.org/id/metropolitan-district-council/wolverhampton","TVLICENSING.CO.UK","147.00","LAC Transitions Team","7392","Client Allowances","24/07/2017"
"Wolverhampton City Council","http://opendatacommunities.org/id/metropolitan-district-council/wolverhampton","WM MORRISONS","36.84","EIP Locality 5","5411","Grant Payments to Individuals","24/07/2017"
"Wolverhampton City Council","http://opendatacommunities.org/id/metropolitan-district-council/wolverhampton","MARRIOTT","140.00","Early Years & Universal Service","3509","Conference Expenses","24/07/2017"
"Wolverhampton City Council","http://opendatacommunities.org/id/metropolitan-district-council/wolverhampton","MARRIOTT","140.00","Early Years & Universal Service","3509","Conference Expenses","24/07/2017"
"Wolverhampton City Council","http://opendatacommunities.org/id/metropolitan-district-council/wolverhampton","MARRIOTT","140.00","Early Years & Universal Service","3509","Conference Expenses","24/07/2017"
"Wolverhampton City Council","http://opendatacommunities.org/id/metropolitan-district-council/wolverhampton","W M MORRISON PLC","40.10","Early Years & Universal Service","5411","Provisions (Not for resale)","24/07/2017"
"Wolverhampton City Council","http://opendatacommunities.org/id/metropolitan-district-council/wolverhampton","THE RANGE","69.60","Early Years & Universal Service","5311","Equipment - Purchase","24/07/2017"
"Wolverhampton City Council","http://opendatacommunities.org/id/metropolitan-district-council/wolverhampton","WWW.ARGOS.CO.UK","107.80","LAC Transitions Team","5310","Client Allowances","24/07/2017"
"Wolverhampton City Council","http://opendatacommunities.org/id/metropolitan-district-council/wolverhampton","ARGOS RETAIL GROUP","51.77","LAC Transitions Team","5310","Client Allowances","24/07/2017"
"Wolverhampton City Council","http://opendatacommunities.org/id/metropolitan-district-council/wolverhampton","ARGOS RETAIL GROUP","18.99","LAC Transitions Team","5310","Client Allowances","24/07/2017"
"Wolverhampton City Council","http://opendatacommunities.org/id/metropolitan-district-council/wolverhampton","ARGOS RETAIL GROUP","76.90","LAC Transitions Team","5310","Client Allowances","24/07/2017"
"Wolverhampton City Council","http://opendatacommunities.org/id/metropolitan-district-council/wolverhampton","BRITANNIA","247.00","CIN/CP Social Work Unit - Area 3","7011","Services - Supplies & Services to users","24/07/2017"
"Wolverhampton City Council","http://opendatacommunities.org/id/metropolitan-district-council/wolverhampton","ASDA SUPERSTORE","28.00","CIN/CP Social Work Unit - Area 3","5411","Client Allowances","24/07/2017"
"Wolverhampton City Council","http://opendatacommunities.org/id/metropolitan-district-council/wolverhampton","ASDA SUPERSTORE","100.00","CIN/CP Social Work Unit - Area 3","5411","Provisions (Not for resale)","24/07/2017"
"Wolverhampton City Council","http://opendatacommunities.org/id/metropolitan-district-council/wolverhampton","ASDA SUPERSTORE","160.00","CIN/CP Social Work Unit - Area 3","5411","Client Transport","24/07/2017"
"Wolverhampton City Council","http://opendatacommunities.org/id/metropolitan-district-council/wolverhampton","HOLIDAY INNS","162.50","Headstart - Learning Technologies Team","3501","Accommodation Costs","24/07/2017"
"Wolverhampton City Council","http://opendatacommunities.org/id/metropolitan-district-council/wolverhampton","HOLIDAY INNS","162.50","Headstart - Learning Technologies Team","3501","Accommodation Costs","24/07/2017"
"Wolverhampton City Council","http://opendatacommunities.org/id/metropolitan-district-council/wolverhampton","HOLIDAY INNS","162.50","Headstart - Learning Technologies Team","3501","Accommodation Costs","24/07/2017"
"Wolverhampton City Council","http://opendatacommunities.org/id/metropolitan-district-council/wolverhampton","Trainline","123.93","Headstart - Learning Technologies Team","4112","Public Transport","24/07/2017"
"Wolverhampton City Council","http://opendatacommunities.org/id/metropolitan-district-council/wolverhampton","WWW.TONERGIANT.CO.UK","111.71","Headstart Phase 3","5943","Stationery","24/07/2017"
"Wolverhampton City Council","http://opendatacommunities.org/id/metropolitan-district-council/wolverhampton","Amazon UK Marketplace","8.32","Headstart Phase 3","5942","Stationery","24/07/2017"
"Wolverhampton City Council","http://opendatacommunities.org/id/metropolitan-district-council/wolverhampton","TESCO STORES 6727","30.00","Headstart - Young People Engagement","5411","Provisions (Not for resale)","24/07/2017"
"Wolverhampton City Council","http://opendatacommunities.org/id/metropolitan-district-council/wolverhampton","PENN TANDOORI LTD","142.92","B-Safe","5812","Educ Trips, Holidays, Outings, Activity","24/07/2017"
"Wolverhampton City Council","http://opendatacommunities.org/id/metropolitan-district-council/wolverhampton","Amazon Prime","7.99","Headstart - Young People Engagement","5968","Subscriptions","24/07/2017"
"Wolverhampton City Council","http://opendatacommunities.org/id/metropolitan-district-council/wolverhampton","Amazon Prime","6.66","Education Business Partnership","5968","Subscriptions","24/07/2017"
"Wolverhampton City Council","http://opendatacommunities.org/id/metropolitan-district-council/wolverhampton","WAITROSE 696","4.60","EIP Locality 3","5411","Provisions (Not for resale)","24/07/2017"
"Wolverhampton City Council","http://opendatacommunities.org/id/metropolitan-district-council/wolverhampton","ASDA HOME SHOPPING","-2.25","Ernest Bold Court","5411","Provisions (Not for resale)","24/07/2017"
"Wolverhampton City Council","http://opendatacommunities.org/id/metropolitan-district-council/wolverhampton","ASDA HOME SHOPPING","97.45","Ernest Bold Court","5411","Provisions (Not for resale)","24/07/2017"
"Wolverhampton City Council","http://opendatacommunities.org/id/metropolitan-district-council/wolverhampton","WILKO RETAIL LIMIT","6.67","Children & Family Contact Services","5722","Equipment - Purchase","24/07/2017"
"Wolverhampton City Council","http://opendatacommunities.org/id/metropolitan-district-council/wolverhampton","POUNDWORLD RETAIL","8.33","Children & Family Contact Services","5310","Equipment - Purchase","24/07/2017"
"Wolverhampton City Council","http://opendatacommunities.org/id/metropolitan-district-council/wolverhampton","AAIA","395.00","School Improvement","8299","Training Expenses","24/07/2017"
"Wolverhampton City Council","http://opendatacommunities.org/id/metropolitan-district-council/wolverhampton","WWW.ARGOS.CO.UK","139.11","CIN/CP Social Work Unit - Area 4","5310","No Recourse to Public Funds","24/07/2017"
"Wolverhampton City Council","http://opendatacommunities.org/id/metropolitan-district-council/wolverhampton","REGISTRARS OFFICE","11.00","CIN/CP Social Work Unit - Area 7","8299","Section 17","24/07/2017"
"Wolverhampton City Council","http://opendatacommunities.org/id/metropolitan-district-council/wolverhampton","Amazon UK Marketplace","7.39","EIP Locality 7","5942","Educ Trips, Holidays, Outings, Activity","24/07/2017"
"Wolverhampton City Council","http://opendatacommunities.org/id/metropolitan-district-council/wolverhampton","Amazon UK Marketplace","9.38","EIP Locality 7","5942","Educ Trips, Holidays, Outings, Activity","24/07/2017"
"Wolverhampton City Council","http://opendatacommunities.org/id/metropolitan-district-council/wolverhampton","Amazon UK Marketplace","14.99","EIP Locality 7","5942","Educ Trips, Holidays, Outings, Activity","24/07/2017"
"Wolverhampton City Council","http://opendatacommunities.org/id/metropolitan-district-council/wolverhampton","Amazon UK Marketplace","51.75","EIP Locality 7","5942","Educ Trips, Holidays, Outings, Activity","24/07/2017"
"Wolverhampton City Council","http://opendatacommunities.org/id/metropolitan-district-council/wolverhampton","Amazon UK Marketplace","8.58","EIP Locality 7","5942","Educ Trips, Holidays, Outings, Activity","24/07/2017"
"Wolverhampton City Council","http://opendatacommunities.org/id/metropolitan-district-council/wolverhampton","Amazon UK Marketplace","149.90","Environmental Health - Pub Prot - Gen","5942","Equipment - Purchase","24/07/2017"
"Wolverhampton City Council","http://opendatacommunities.org/id/metropolitan-district-council/wolverhampton","SAINSBURYS (2340)","24.97","Play General","5411","Provisions (Not for resale)","24/07/2017"
"Wolverhampton City Council","http://opendatacommunities.org/id/metropolitan-district-council/wolverhampton","MY UNIFORM HUB","78.20","CIN/CP Social Work Unit - Area 5","5641","No Recourse to Public Funds","24/07/2017"
"Wolverhampton City Council","http://opendatacommunities.org/id/metropolitan-district-council/wolverhampton","Amazon EU","11.40","Jane & Louise Wilson","5969","Materials","24/07/2017"
"Wolverhampton City Council","http://opendatacommunities.org/id/metropolitan-district-council/wolverhampton","SAINSBURYS (2340)","57.98","Civic Centre Catering","5411","Provisions (Not for resale)","24/07/2017"
"Wolverhampton City Council","http://opendatacommunities.org/id/metropolitan-district-council/wolverhampton","REGISTRARS OFFICE","10.00","Head of Service - CINCP","8299","Services - Professional Fees","24/07/2017"
"Wolverhampton City Council","http://opendatacommunities.org/id/metropolitan-district-council/wolverhampton","REGISTRARS OFFICE","30.00","Head of Service - CINCP","8299","Services - Professional Fees","24/07/2017"
"Wolverhampton City Council","http://opendatacommunities.org/id/metropolitan-district-council/wolverhampton","WALSALL COUNCIL","72.00","Head of Service - CINCP","9399","Services - Professional Fees","24/07/2017"
"Wolverhampton City Council","http://opendatacommunities.org/id/metropolitan-district-council/wolverhampton","HOMESENSE","35.04","Upper Pendeford Farm Childrens Home","5331","Equipment - Purchase","24/07/2017"
"Wolverhampton City Council","http://opendatacommunities.org/id/metropolitan-district-council/wolverhampton","Amazon UK Marketplace","14.88","EIP Locality 7","5942","Educ Trips, Holidays, Outings, Activity","24/07/2017"
"Wolverhampton City Council","http://opendatacommunities.org/id/metropolitan-district-council/wolverhampton","Amazon UK Marketplace","14.78","Planning","5942","Equipment - Purchase","24/07/2017"
"Wolverhampton City Council","http://opendatacommunities.org/id/metropolitan-district-council/wolverhampton","Amazon Prime","7.99","LAC Team","5968","Services - Fees and Charges","24/07/2017"
"Wolverhampton City Council","http://opendatacommunities.org/id/metropolitan-district-council/wolverhampton","REGISTRARS OFFICE","20.00","LAC Team","8299","Financial Assistance In Exceptional Circ","24/07/2017"
"Wolverhampton City Council","http://opendatacommunities.org/id/metropolitan-district-council/wolverhampton","WWW.DERBY.GOV.UK","22.40","LAC Team","9399","Financial Assistance In Exceptional Circ","24/07/2017"
"Wolverhampton City Council","http://opendatacommunities.org/id/metropolitan-district-council/wolverhampton","E01510300000000","50.00","Emergency Duty Team","6011","Financial Assistance In Exceptional Circ","24/07/2017"
"Wolverhampton City Council","http://opendatacommunities.org/id/metropolitan-district-council/wolverhampton","PREMIER INN","255.42","Homeless Families","3811","Accommodation Costs","24/07/2017"
"Wolverhampton City Council","http://opendatacommunities.org/id/metropolitan-district-council/wolverhampton","Amazon EU","31.19","EIP Locality 1","5969","Equipment - Purchase","24/07/2017"
"Wolverhampton City Council","http://opendatacommunities.org/id/metropolitan-district-council/wolverhampton","Amazon Prime","7.99","Technical Support","5968","Subscriptions","24/07/2017"
"Wolverhampton City Council","http://opendatacommunities.org/id/metropolitan-district-council/wolverhampton","Amazon UK Marketplace","17.98","Technical Support","5942","Books","24/07/2017"
"Wolverhampton City Council","http://opendatacommunities.org/id/metropolitan-district-council/wolverhampton","Amazon UK Marketplace","62.20","Technical Support","5942","Books","24/07/2017"
"Wolverhampton City Council","http://opendatacommunities.org/id/metropolitan-district-council/wolverhampton","Amazon EU","8.21","Global Budgets","5969","Books","24/07/2017"
"Wolverhampton City Council","http://opendatacommunities.org/id/metropolitan-district-council/wolverhampton","Amazon UK Marketplace","7.14","Global Budgets","5942","Books","24/07/2017"
"Wolverhampton City Council","http://opendatacommunities.org/id/metropolitan-district-council/wolverhampton","Amazon UK Marketplace","18.47","Global Budgets","5942","Books","24/07/2017"
"Wolverhampton City Council","http://opendatacommunities.org/id/metropolitan-district-council/wolverhampton","Amazon UK Marketplace","11.98","EIP Locality 7","5942","Educ Trips, Holidays, Outings, Activity","21/07/2017"
"Wolverhampton City Council","http://opendatacommunities.org/id/metropolitan-district-council/wolverhampton","Trainline","209.56","Education And Access","4112","Public Transport","21/07/2017"
"Wolverhampton City Council","http://opendatacommunities.org/id/metropolitan-district-council/wolverhampton","CURRYS S/S","91.66","Shopmobility","5732","Equipment - Purchase","21/07/2017"
"Wolverhampton City Council","http://opendatacommunities.org/id/metropolitan-district-council/wolverhampton","B & Q 1243","42.65","Car Parks Operational Staff","5211","Equipment - Purchase","21/07/2017"
"Wolverhampton City Council","http://opendatacommunities.org/id/metropolitan-district-council/wolverhampton","WWW.WMCA.CO.UK","132.00","CIN/CP Social Work Unit - Area 4","9399","Section 17","21/07/2017"
"Wolverhampton City Council","http://opendatacommunities.org/id/metropolitan-district-council/wolverhampton","HALFORDS 0775","-52.00","Education Catering - General Overheads","5940","School Meals","21/07/2017"
"Wolverhampton City Council","http://opendatacommunities.org/id/metropolitan-district-council/wolverhampton","ROYAL TOWN PLANNING","100.00","Central Training","8398","Training Expenses","21/07/2017"
"Wolverhampton City Council","http://opendatacommunities.org/id/metropolitan-district-council/wolverhampton","Amazon UK Marketplace","1.45","EIP Locality 7","5942","Educ Trips, Holidays, Outings, Activity","21/07/2017"
"Wolverhampton City Council","http://opendatacommunities.org/id/metropolitan-district-council/wolverhampton","Amazon UK Marketplace","36.24","Headstart Phase 3","5942","Subsistence","21/07/2017"
"Wolverhampton City Council","http://opendatacommunities.org/id/metropolitan-district-council/wolverhampton","WWW.UNITEDCRB.COM","62.99","IMPACT","7392","Services - Consultants","21/07/2017"
"Wolverhampton City Council","http://opendatacommunities.org/id/metropolitan-district-council/wolverhampton","ASDA SUPERSTORE","34.07","Mayoral Expenses","5411","Provisions (Not for resale)","21/07/2017"
"Wolverhampton City Council","http://opendatacommunities.org/id/metropolitan-district-council/wolverhampton","SCREWFIX DIRECT","59.45","Parkfields Centre","5211","Materials","21/07/2017"
"Wolverhampton City Council","http://opendatacommunities.org/id/metropolitan-district-council/wolverhampton","OCEANIC SAUNAS LIMITED","186.67","Central Baths","5996","Equipment - Purchase","21/07/2017"
"Wolverhampton City Council","http://opendatacommunities.org/id/metropolitan-district-council/wolverhampton","WM MORRISONS","17.98","Safeguarding Board - Childrens","5411","Catering","21/07/2017"
"Wolverhampton City Council","http://opendatacommunities.org/id/metropolitan-district-council/wolverhampton","WEST COAST TRAINS","10.00","Research & Development","7523","Parking Fees","21/07/2017"
"Wolverhampton City Council","http://opendatacommunities.org/id/metropolitan-district-council/wolverhampton","LUL TICKET MACHINE","9.80","Research & Development","4112","Public Transport","21/07/2017"
"Wolverhampton City Council","http://opendatacommunities.org/id/metropolitan-district-council/wolverhampton","TIPPERS WOLVERHAMPTON","17.97","Cleaning of Buildings - General","5072","Equipment - Purchase","21/07/2017"
"Wolverhampton City Council","http://opendatacommunities.org/id/metropolitan-district-council/wolverhampton","BEVERLEY HOTEL LTD - T","276.25","MASH","7011","Accommodation Costs","21/07/2017"
"Wolverhampton City Council","http://opendatacommunities.org/id/metropolitan-district-council/wolverhampton","NATURAL HIST. MUSEUM","624.00","Art Gallery","5970","Materials","21/07/2017"
"Wolverhampton City Council","http://opendatacommunities.org/id/metropolitan-district-council/wolverhampton","WWW.STAPLES.CO.UK","14.57","Towers Outdoor Education Centre","5943","Equipment - Purchase","21/07/2017"
"Wolverhampton City Council","http://opendatacommunities.org/id/metropolitan-district-council/wolverhampton","Amazon UK Marketplace","9.30","Global Budgets","5942","Books","21/07/2017"
"Wolverhampton City Council","http://opendatacommunities.org/id/metropolitan-district-council/wolverhampton","Amazon UK Marketplace","8.82","Global Budgets","5942","Books","21/07/2017"
"Wolverhampton City Council","http://opendatacommunities.org/id/metropolitan-district-council/wolverhampton","Cross Country Trains","148.40","Welfare Rights","4112","Public Transport","21/07/2017"
"Wolverhampton City Council","http://opendatacommunities.org/id/metropolitan-district-council/wolverhampton","GRO HM PASSPORT OFFICE","-23.40","Head of Service - CINCP","9399","Services - Professional Fees","21/07/2017"
"Wolverhampton City Council","http://opendatacommunities.org/id/metropolitan-district-council/wolverhampton","GO CARZ","6.29","Legal Services","4121","Client Transport","21/07/2017"
"Wolverhampton City Council","http://opendatacommunities.org/id/metropolitan-district-council/wolverhampton","Trainline","135.15","CIN/CP Social Work Unit - Area 8","4112","Public Transport","21/07/2017"
"Wolverhampton City Council","http://opendatacommunities.org/id/metropolitan-district-council/wolverhampton","BAKER ROSS LTD","41.68","EIP Locality 7","5970","Educ Trips, Holidays, Outings, Activity","21/07/2017"
"Wolverhampton City Council","http://opendatacommunities.org/id/metropolitan-district-council/wolverhampton","Amazon UK Marketplace","4.01","EIP Locality 7","5942","Educ Trips, Holidays, Outings, Activity","21/07/2017"
"Wolverhampton City Council","http://opendatacommunities.org/id/metropolitan-district-council/wolverhampton","REGISTRARS OFFICE","11.00","Childrens with Disabilities Team","8299","Section 17","21/07/2017"
"Wolverhampton City Council","http://opendatacommunities.org/id/metropolitan-district-council/wolverhampton","ROYAL BK OF SCOTLAND","100.00","Childrens with Disabilities Team","6011","No Recourse to Public Funds","21/07/2017"
"Wolverhampton City Council","http://opendatacommunities.org/id/metropolitan-district-council/wolverhampton","ROYAL BK OF SCOTLAND","250.00","Childrens with Disabilities Team","6011","No Recourse to Public Funds","21/07/2017"
"Wolverhampton City Council","http://opendatacommunities.org/id/metropolitan-district-council/wolverhampton","LOVE2SHOP.CO.UK","20.00","LAC Education Team (LACE)","8641","Educ Trips, Holidays, Outings, Activity","21/07/2017"
"Wolverhampton City Council","http://opendatacommunities.org/id/metropolitan-district-council/wolverhampton","HOME BARGAINS WOLVERHA","74.14","LAC Transitions Team","5251","Client Allowances","21/07/2017"
"Wolverhampton City Council","http://opendatacommunities.org/id/metropolitan-district-council/wolverhampton","ARGOS LTD","144.42","LAC Transitions Team","5310","Client Allowances","21/07/2017"
"Wolverhampton City Council","http://opendatacommunities.org/id/metropolitan-district-council/wolverhampton","Trainline","81.09","Youth Offending Team","4112","Public Transport","21/07/2017"
"Wolverhampton City Council","http://opendatacommunities.org/id/metropolitan-district-council/wolverhampton","PREMIER INN","509.10","Strategic ICTS (ICT Serv Budget)","3811","Accommodation Costs","21/07/2017"
"Wolverhampton City Council","http://opendatacommunities.org/id/metropolitan-district-council/wolverhampton","WWW.ARGOS.CO.UK","135.40","LAC Transitions Team","5310","Client Allowances","21/07/2017"
"Wolverhampton City Council","http://opendatacommunities.org/id/metropolitan-district-council/wolverhampton","Amazon UK Marketplace","4.29","Global Budgets","5942","Books","21/07/2017"
"Wolverhampton City Council","http://opendatacommunities.org/id/metropolitan-district-council/wolverhampton","WAITROSE 696","24.85","Headstart - Learning Technologies Team","5411","Hospitality","21/07/2017"
"Wolverhampton City Council","http://opendatacommunities.org/id/metropolitan-district-council/wolverhampton","SAINSBURYS","100.00","Headstart Phase 3","6011","Financial Assistance In Exceptional Circ","21/07/2017"
"Wolverhampton City Council","http://opendatacommunities.org/id/metropolitan-district-council/wolverhampton","Amazon UK Marketplace","9.99","Headstart Phase 3","5942","Subsistence","21/07/2017"
"Wolverhampton City Council","http://opendatacommunities.org/id/metropolitan-district-council/wolverhampton","Amazon UK Marketplace","30.82","Headstart Phase 3","5942","Equipment - Purchase","21/07/2017"
"Wolverhampton City Council","http://opendatacommunities.org/id/metropolitan-district-council/wolverhampton","Amazon UK Marketplace","6.24","Headstart Phase 3","5942","Stationery","21/07/2017"
"Wolverhampton City Council","http://opendatacommunities.org/id/metropolitan-district-council/wolverhampton","DUDLEY MET CNL ATP","25.30","IMPACT","7999","Educ Trips, Holidays, Outings, Activity","20/07/2017"
"Wolverhampton City Council","http://opendatacommunities.org/id/metropolitan-district-council/wolverhampton","GO CARZ","7.13","Head of Service - LAC","4121","Client Transport","20/07/2017"
"Wolverhampton City Council","http://opendatacommunities.org/id/metropolitan-district-council/wolverhampton","ARGOS LTD","20.42","Play General","5310","Equipment - Purchase","20/07/2017"
"Wolverhampton City Council","http://opendatacommunities.org/id/metropolitan-district-council/wolverhampton","AMAZON.CO.UK","21.62","Education And Access","5999","Materials","20/07/2017"
"Wolverhampton City Council","http://opendatacommunities.org/id/metropolitan-district-council/wolverhampton","REGISTRARS OFFICE","27.00","Head of Service - CINCP","8299","Services - Professional Fees","20/07/2017"
"Wolverhampton City Council","http://opendatacommunities.org/id/metropolitan-district-council/wolverhampton","REGISTRARS OFFICE","30.00","Head of Service - CINCP","8299","Services - Professional Fees","20/07/2017"
"Wolverhampton City Council","http://opendatacommunities.org/id/metropolitan-district-council/wolverhampton","Amazon EU","32.75","Central Baths","5969","Equipment - Purchase","20/07/2017"
"Wolverhampton City Council","http://opendatacommunities.org/id/metropolitan-district-council/wolverhampton","Amazon UK Marketplace","70.49","Central Baths","5942","Equipment - Purchase","20/07/2017"
"Wolverhampton City Council","http://opendatacommunities.org/id/metropolitan-district-council/wolverhampton","ARGOS DIRECT","-221.94","Upper Pendeford Farm Childrens Home","5310","Equipment - Purchase","20/07/2017"
"Wolverhampton City Council","http://opendatacommunities.org/id/metropolitan-district-council/wolverhampton","CENTER PARCS, INHOUSE","499.80","Upper Pendeford Farm Childrens Home","7011","Services - Supplies & Services to users","20/07/2017"
"Wolverhampton City Council","http://opendatacommunities.org/id/metropolitan-district-council/wolverhampton","CENTER PARCS, INHOUSE","499.80","Upper Pendeford Farm Childrens Home","7011","Services - Supplies & Services to users","20/07/2017"
"Wolverhampton City Council","http://opendatacommunities.org/id/metropolitan-district-council/wolverhampton","PAYPAL  BARNARDOS","50.00","EIP Locality 5","8999","Training Expenses","20/07/2017"
"Wolverhampton City Council","http://opendatacommunities.org/id/metropolitan-district-council/wolverhampton","WWW.WMCA.CO.UK","109.00","IMPACT","9399","Client Transport","20/07/2017"
"Wolverhampton City Council","http://opendatacommunities.org/id/metropolitan-district-council/wolverhampton","CUMMINGS BROTHERS LOCK","15.00","Cleaning of Buildings - General","7399","Equipment - Purchase","20/07/2017"
"Wolverhampton City Council","http://opendatacommunities.org/id/metropolitan-district-council/wolverhampton","ARGOS DIRECT","161.61","Vulnerable Young Persons Team","5310","Equipment - Purchase","20/07/2017"
"Wolverhampton City Council","http://opendatacommunities.org/id/metropolitan-district-council/wolverhampton","TESCO DELIVERY SAVER2","3.50","Towers Outdoor Education Centre","5968","Subscriptions","20/07/2017"
"Wolverhampton City Council","http://opendatacommunities.org/id/metropolitan-district-council/wolverhampton","BLAS AR FWYD CYF","51.40","Towers Outdoor Education Centre","5812","Educ Trips, Holidays, Outings, Activity","20/07/2017"
"Wolverhampton City Council","http://opendatacommunities.org/id/metropolitan-district-council/wolverhampton","GRO HM PASSPORT OFFICE","46.80","Head of Service - CINCP","9399","Services - Professional Fees","20/07/2017"
"Wolverhampton City Council","http://opendatacommunities.org/id/metropolitan-district-council/wolverhampton","WWW.SIXTYSTORES.CO.UK","60.98","Upper Pendeford Farm Childrens Home","5722","Equipment - Purchase","20/07/2017"
"Wolverhampton City Council","http://opendatacommunities.org/id/metropolitan-district-council/wolverhampton","CENTER PARCS, INHOUSE","369.24","Upper Pendeford Farm Childrens Home","7011","Educ Trips, Holidays, Outings, Activity","20/07/2017"
"Wolverhampton City Council","http://opendatacommunities.org/id/metropolitan-district-council/wolverhampton","HMCOURTS-SERVICE.G","75.00","Mental Health Assessment & Care Mgmt","9222","Services - Fees and Charges","20/07/2017"
"Wolverhampton City Council","http://opendatacommunities.org/id/metropolitan-district-council/wolverhampton","MARKS&SPENCER PLC SACA","1.50","Mayoral Expenses","5411","Hospitality","20/07/2017"
"Wolverhampton City Council","http://opendatacommunities.org/id/metropolitan-district-council/wolverhampton","PAYPAL  LEEBOLTONMO","150.00","School Improvement","8111","Services - Professional Fees","20/07/2017"
"Wolverhampton City Council","http://opendatacommunities.org/id/metropolitan-district-council/wolverhampton","Amazon UK Marketplace","18.76","EIP Locality 7","5942","Equipment - Purchase","20/07/2017"
"Wolverhampton City Council","http://opendatacommunities.org/id/metropolitan-district-council/wolverhampton","FUEL CARD SERVICES LTD","243.07","Towers Outdoor Education Centre","7399","Petrol","20/07/2017"
"Wolverhampton City Council","http://opendatacommunities.org/id/metropolitan-district-council/wolverhampton","PAYPAL  123REGLIMIT","34.99","Technical Support","4816","Computing - Purchase of Software","20/07/2017"
"Wolverhampton City Council","http://opendatacommunities.org/id/metropolitan-district-council/wolverhampton","Wix.com","93.13","Technical Support","5817","Computing - Purchase of Software","20/07/2017"
"Wolverhampton City Council","http://opendatacommunities.org/id/metropolitan-district-council/wolverhampton","Amazon UK Marketplace","5.23","Global Budgets","5942","Books","20/07/2017"
"Wolverhampton City Council","http://opendatacommunities.org/id/metropolitan-district-council/wolverhampton","Amazon UK Marketplace","17.31","Global Budgets","5942","Books","20/07/2017"
"Wolverhampton City Council","http://opendatacommunities.org/id/metropolitan-district-council/wolverhampton","Amazon UK Marketplace","10.48","Global Budgets","5942","Books","20/07/2017"
"Wolverhampton City Council","http://opendatacommunities.org/id/metropolitan-district-council/wolverhampton","Amazon UK Marketplace","20.99","Towers Outdoor Education Centre","5942","Fixtures and Fittings - R&M","19/07/2017"
"Wolverhampton City Council","http://opendatacommunities.org/id/metropolitan-district-council/wolverhampton","Amazon UK Marketplace","22.47","Towers Outdoor Education Centre","5942","Books","19/07/2017"
"Wolverhampton City Council","http://opendatacommunities.org/id/metropolitan-district-council/wolverhampton","BLITZ RECYCLING LTD","240.00","EIP Locality 7","7394","Grant Payments","19/07/2017"
"Wolverhampton City Council","http://opendatacommunities.org/id/metropolitan-district-council/wolverhampton","Amazon EU","15.33","EIP Locality 7","5969","Equipment - Purchase","19/07/2017"
"Wolverhampton City Council","http://opendatacommunities.org/id/metropolitan-district-council/wolverhampton","Amazon UK Marketplace","3.79","EIP Locality 7","5942","Equipment - Purchase","19/07/2017"
"Wolverhampton City Council","http://opendatacommunities.org/id/metropolitan-district-council/wolverhampton","HIGHFIELD HOUSE HO","385.00","CIN/CP Social Work Unit - Area 3","7011","Accommodation Costs","19/07/2017"
"Wolverhampton City Council","http://opendatacommunities.org/id/metropolitan-district-council/wolverhampton","WWW.PELLACRAFT.COM","55.00","Communications & Marketing - General","5944","Equipment - Purchase","19/07/2017"
"Wolverhampton City Council","http://opendatacommunities.org/id/metropolitan-district-council/wolverhampton","WWW.WEPRINTLANYARDS.CO","13.75","Technical Support","5947","Equipment - Purchase","19/07/2017"
"Wolverhampton City Council","http://opendatacommunities.org/id/metropolitan-district-council/wolverhampton","Trainline","87.21","Inclusion Support","4112","Public Transport","19/07/2017"
"Wolverhampton City Council","http://opendatacommunities.org/id/metropolitan-district-council/wolverhampton","WWW.UCAS.COM","458.00","24+ Advanced Learning Loan","8220","Services - Fees and Charges","19/07/2017"
"Wolverhampton City Council","http://opendatacommunities.org/id/metropolitan-district-council/wolverhampton","AMAZON.CO.UK","14.95","Education And Access","5999","Materials","19/07/2017"
"Wolverhampton City Council","http://opendatacommunities.org/id/metropolitan-district-council/wolverhampton","Trainline","7.91","CIN/CP Social Work Unit - Area 4","4112","Public Transport","19/07/2017"
"Wolverhampton City Council","http://opendatacommunities.org/id/metropolitan-district-council/wolverhampton","PERSONAL-PRODUCTS.","165.83","Civic Centre Catering","4816","Catering","19/07/2017"
"Wolverhampton City Council","http://opendatacommunities.org/id/metropolitan-district-council/wolverhampton","SAINSBURYS (2340)","9.50","Civic Centre Catering","5411","Provisions (Not for resale)","19/07/2017"
"Wolverhampton City Council","http://opendatacommunities.org/id/metropolitan-district-council/wolverhampton","Trainline","162.89","CIN/CP Social Work Unit - Area 7","4112","Section 17","19/07/2017"
"Wolverhampton City Council","http://opendatacommunities.org/id/metropolitan-district-council/wolverhampton","Trainline","268.36","Adoption and Residence Team & Allowances","4112","Public Transport","19/07/2017"
"Wolverhampton City Council","http://opendatacommunities.org/id/metropolitan-district-council/wolverhampton","POST OFFICE COUNTER","4.40","Adoption and Residence Team & Allowances","9402","Comms - Postage","19/07/2017"
"Wolverhampton City Council","http://opendatacommunities.org/id/metropolitan-district-council/wolverhampton","WALSALL COUNCIL","22.00","Adoption and Residence Team & Allowances","9399","Services - Fees and Charges","19/07/2017"
"Wolverhampton City Council","http://opendatacommunities.org/id/metropolitan-district-council/wolverhampton","WWW.OFFICEFURNITUREONL","135.00","Towers Outdoor Education Centre","5712","Equipment - Purchase","19/07/2017"
"Wolverhampton City Council","http://opendatacommunities.org/id/metropolitan-district-council/wolverhampton","ASDA GEORGE COM LEEDS","48.75","CIN/CP Social Work Unit - Area 2","5411","Section 17","19/07/2017"
"Wolverhampton City Council","http://opendatacommunities.org/id/metropolitan-district-council/wolverhampton","Trainline","135.15","CIN/CP Social Work Unit - Area 2","4112","Section 17","19/07/2017"
"Wolverhampton City Council","http://opendatacommunities.org/id/metropolitan-district-council/wolverhampton","CARVER/WOLVERHAMPTON/L","37.30","Cleaning of Buildings - General","5211","Materials","19/07/2017"
"Wolverhampton City Council","http://opendatacommunities.org/id/metropolitan-district-council/wolverhampton","THE QUEEN VICTORIA HOT","35.00","MASH","7011","No Recourse to Public Funds","19/07/2017"
"Wolverhampton City Council","http://opendatacommunities.org/id/metropolitan-district-council/wolverhampton","TESCO STORES 5194","56.92","Towers Outdoor Education Centre","5411","Provisions (Not for resale)","19/07/2017"
"Wolverhampton City Council","http://opendatacommunities.org/id/metropolitan-district-council/wolverhampton","PEAK UK","1093.75","Towers Outdoor Education Centre","5941","Equipment - Purchase","19/07/2017"
"Wolverhampton City Council","http://opendatacommunities.org/id/metropolitan-district-council/wolverhampton","CHEMSOL CYMRU LTD","90.00","Towers Outdoor Education Centre","5199","Equipment - Purchase","19/07/2017"
"Wolverhampton City Council","http://opendatacommunities.org/id/metropolitan-district-council/wolverhampton","LLANDRILLO","60.00","Towers Outdoor Education Centre","8220","Equipment - Purchase","19/07/2017"
"Wolverhampton City Council","http://opendatacommunities.org/id/metropolitan-district-council/wolverhampton","WWW.HIGHFIELDABC.COM","160.00","School Meals Statutory Standards","7299","Training Expenses","19/07/2017"
"Wolverhampton City Council","http://opendatacommunities.org/id/metropolitan-district-council/wolverhampton","WWW.HIGHFIELDABC.COM","320.00","School Meals Statutory Standards","7299","Training Expenses","19/07/2017"
"Wolverhampton City Council","http://opendatacommunities.org/id/metropolitan-district-council/wolverhampton","TVLICENSING.CO.UK","147.00","Blakenhall Commty & Healthy Living Ctr","7392","Services - General Licences","19/07/2017"
"Wolverhampton City Council","http://opendatacommunities.org/id/metropolitan-district-council/wolverhampton","IDC WRISTBANDS","92.24","Technical Support","5699","Equipment - Purchase","19/07/2017"
"Wolverhampton City Council","http://opendatacommunities.org/id/metropolitan-district-council/wolverhampton","POUNDLAND LTD 1463","1.67","Admin & Support","5310","Catering","19/07/2017"
"Wolverhampton City Council","http://opendatacommunities.org/id/metropolitan-district-council/wolverhampton","WEST COAST TRAINS","561.60","City Direct","4112","Public Transport","19/07/2017"
"Wolverhampton City Council","http://opendatacommunities.org/id/metropolitan-district-council/wolverhampton","WISEPOPSCOM","38.77","City Direct","7372","Computing - Purchase of Software","19/07/2017"
"Wolverhampton City Council","http://opendatacommunities.org/id/metropolitan-district-council/wolverhampton","ARGOS LTD","15.99","LAC Transitions Team","5310","Client Allowances","19/07/2017"
"Wolverhampton City Council","http://opendatacommunities.org/id/metropolitan-district-council/wolverhampton","SAINSBURYS (2340)","140.00","LAC Transitions Team","5411","Client Allowances","19/07/2017"
"Wolverhampton City Council","http://opendatacommunities.org/id/metropolitan-district-council/wolverhampton","ROYAL CARPETS","150.00","LAC Transitions Team","5713","Client Allowances","19/07/2017"
"Wolverhampton City Council","http://opendatacommunities.org/id/metropolitan-district-council/wolverhampton","WWW.WMCA.CO.UK","638.00","Delivery & OCE Development","4112","Public Transport","19/07/2017"
"Wolverhampton City Council","http://opendatacommunities.org/id/metropolitan-district-council/wolverhampton","Amazon UK Marketplace","5.44","Central Baths","5942","Books","19/07/2017"
"Wolverhampton City Council","http://opendatacommunities.org/id/metropolitan-district-council/wolverhampton","ASDA HOME SHOPPING","0.07","Upper Pendeford Farm Childrens Home","5411","Provisions (Not for resale)","19/07/2017"
"Wolverhampton City Council","http://opendatacommunities.org/id/metropolitan-district-council/wolverhampton","ASDA HOME SHOPPING","324.56","Upper Pendeford Farm Childrens Home","5411","Provisions (Not for resale)","19/07/2017"
"Wolverhampton City Council","http://opendatacommunities.org/id/metropolitan-district-council/wolverhampton","TVLICENSING.CO.UK","147.00","LAC Transitions Team","7392","Client Allowances","19/07/2017"
"Wolverhampton City Council","http://opendatacommunities.org/id/metropolitan-district-council/wolverhampton","ARGOS LTD","44.96","Wolverhampton Indoor and Open Market","5310","Equipment - Purchase","19/07/2017"
"Wolverhampton City Council","http://opendatacommunities.org/id/metropolitan-district-council/wolverhampton","UNTOUCHABLES","20.83","Cemeteries","5231","Materials","18/07/2017"
"Wolverhampton City Council","http://opendatacommunities.org/id/metropolitan-district-council/wolverhampton","WM MORRISONS","13.00","EIP Locality 2","5411","Provisions (Not for resale)","18/07/2017"
"Wolverhampton City Council","http://opendatacommunities.org/id/metropolitan-district-council/wolverhampton","NATIONWIDE","100.00","EIP Locality 2","6011","Training Expenses","18/07/2017"
"Wolverhampton City Council","http://opendatacommunities.org/id/metropolitan-district-council/wolverhampton","POST OFFICE COUNTER","60.50","Intensive Family Support Team","9402","Comms - Postage","18/07/2017"
"Wolverhampton City Council","http://opendatacommunities.org/id/metropolitan-district-council/wolverhampton","Trainline","56.61","Quality Assurance & Policies","4112","Public Transport","18/07/2017"
"Wolverhampton City Council","http://opendatacommunities.org/id/metropolitan-district-council/wolverhampton","The Plastic Box Compan","6.85","Electoral Registration","5085","Equipment - Purchase","18/07/2017"
"Wolverhampton City Council","http://opendatacommunities.org/id/metropolitan-district-council/wolverhampton","WWW.WORC.AC.UK","300.00","LAC Transitions Team","8220","Accommodation Costs","18/07/2017"
"Wolverhampton City Council","http://opendatacommunities.org/id/metropolitan-district-council/wolverhampton","ARGOS RETAIL GROUP","79.17","LAC Transitions Team","5310","Client Allowances","18/07/2017"
"Wolverhampton City Council","http://opendatacommunities.org/id/metropolitan-district-council/wolverhampton","COMPLETE CARE SHOP","41.24","MASH","5999","Equipment - Health and Safety","18/07/2017"
"Wolverhampton City Council","http://opendatacommunities.org/id/metropolitan-district-council/wolverhampton","EXPEDIA 7280863574609","63.60","MASH","4722","Accommodation Costs","18/07/2017"
"Wolverhampton City Council","http://opendatacommunities.org/id/metropolitan-district-council/wolverhampton","Wix.com","46.57","Technical Support","5817","Computing - Purchase of Software","18/07/2017"
"Wolverhampton City Council","http://opendatacommunities.org/id/metropolitan-district-council/wolverhampton","WAITROSE 696","13.00","EIP Locality 3","5411","Comms - Postage","18/07/2017"
"Wolverhampton City Council","http://opendatacommunities.org/id/metropolitan-district-council/wolverhampton","WWW.WMCA.CO.UK","109.00","IMPACT","9399","Services - Fees and Charges","18/07/2017"
"Wolverhampton City Council","http://opendatacommunities.org/id/metropolitan-district-council/wolverhampton","SCREWFIX DIRECT","299.99","IMPACT","5211","Materials","18/07/2017"
"Wolverhampton City Council","http://opendatacommunities.org/id/metropolitan-district-council/wolverhampton","Virgin Trains","182.00","Planning","4112","Public Transport","18/07/2017"
"Wolverhampton City Council","http://opendatacommunities.org/id/metropolitan-district-council/wolverhampton","THE POST OFFICE","65.00","Adult Services - East","9402","Comms - Postage","18/07/2017"
"Wolverhampton City Council","http://opendatacommunities.org/id/metropolitan-district-council/wolverhampton","DOUBLETREE","100.00","Democratic Support","3692","Conference Expenses","18/07/2017"
"Wolverhampton City Council","http://opendatacommunities.org/id/metropolitan-district-council/wolverhampton","POUNDLAND LTD 1463","4.17","Admin & Support","5310","Equipment - Purchase","18/07/2017"
"Wolverhampton City Council","http://opendatacommunities.org/id/metropolitan-district-council/wolverhampton","LOVE2SHOP.CO.UK","20.00","LAC Education Team (LACE)","8641","Educ Trips, Holidays, Outings, Activity","18/07/2017"
"Wolverhampton City Council","http://opendatacommunities.org/id/metropolitan-district-council/wolverhampton","ASDA HOME SHOPPING","101.14","Ernest Bold Court","5411","Provisions (Not for resale)","18/07/2017"
"Wolverhampton City Council","http://opendatacommunities.org/id/metropolitan-district-council/wolverhampton","WWW.BRAINBOXES.COM","52.80","Environmental Health - Pub Prot - Gen","5045","Equipment - Purchase","18/07/2017"
"Wolverhampton City Council","http://opendatacommunities.org/id/metropolitan-district-council/wolverhampton","ASDA SUPERSTORE","29.07","CIN/CP Social Work Unit - Area 4","5411","Section 17","18/07/2017"
"Wolverhampton City Council","http://opendatacommunities.org/id/metropolitan-district-council/wolverhampton","ARGOS LTD","16.65","Revenues","5310","Equipment - Purchase","18/07/2017"
"Wolverhampton City Council","http://opendatacommunities.org/id/metropolitan-district-council/wolverhampton","POST OFFICE COUNTER","19.50","Adult Services - West","9402","Comms - Postage","18/07/2017"
"Wolverhampton City Council","http://opendatacommunities.org/id/metropolitan-district-council/wolverhampton","Trainline","228.99","Adoption and Residence Team & Allowances","4112","Public Transport","18/07/2017"
"Wolverhampton City Council","http://opendatacommunities.org/id/metropolitan-district-council/wolverhampton","Trainline","15.05","Adoption and Residence Team & Allowances","4112","Public Transport","18/07/2017"
"Wolverhampton City Council","http://opendatacommunities.org/id/metropolitan-district-council/wolverhampton","POST OFFICE COUNTER","6.45","Adoption and Residence Team & Allowances","9402","Comms - Postage","18/07/2017"
"Wolverhampton City Council","http://opendatacommunities.org/id/metropolitan-district-council/wolverhampton","ARGOS RETAIL GROUP","90.98","EIP Locality 7","5310","Equipment - Purchase","18/07/2017"
"Wolverhampton City Council","http://opendatacommunities.org/id/metropolitan-district-council/wolverhampton","ARGOS RETAIL GROUP","133.93","EIP Locality 7","5310","Equipment - Purchase","18/07/2017"
"Wolverhampton City Council","http://opendatacommunities.org/id/metropolitan-district-council/wolverhampton","AMAZON.CO.UK","9.99","EIP Locality 7","5999","Equipment - Purchase","18/07/2017"
"Wolverhampton City Council","http://opendatacommunities.org/id/metropolitan-district-council/wolverhampton","Amazon UK Marketplace","1.49","EIP Locality 7","5942","Equipment - Purchase","18/07/2017"
"Wolverhampton City Council","http://opendatacommunities.org/id/metropolitan-district-council/wolverhampton","ARGOS RETAIL GROUP","221.94","Upper Pendeford Farm Childrens Home","5310","Equipment - Purchase","17/07/2017"
"Wolverhampton City Council","http://opendatacommunities.org/id/metropolitan-district-council/wolverhampton","Trainline","175.90","Research & Development","4112","Public Transport","17/07/2017"
"Wolverhampton City Council","http://opendatacommunities.org/id/metropolitan-district-council/wolverhampton","TATE BRITAIN - LONDON","6.67","Research & Development","5971","Services - Professional Fees","17/07/2017"
"Wolverhampton City Council","http://opendatacommunities.org/id/metropolitan-district-council/wolverhampton","WWW.ARGOS.CO.UK","103.69","LAC Transitions Team","5310","Client Allowances","17/07/2017"
"Wolverhampton City Council","http://opendatacommunities.org/id/metropolitan-district-council/wolverhampton","ANGLESEY ESTATES BRIDG","375.00","LAC Transitions Team","7399","Client Allowances","17/07/2017"
"Wolverhampton City Council","http://opendatacommunities.org/id/metropolitan-district-council/wolverhampton","LIDDELL ELECTRICAL DIS","22.50","Caretakers Community Centre","5065","R&M - Departmental planned (external)","17/07/2017"
"Wolverhampton City Council","http://opendatacommunities.org/id/metropolitan-district-council/wolverhampton","PREMIER INN","411.25","Homeless Families","3811","Accommodation Costs","17/07/2017"
"Wolverhampton City Council","http://opendatacommunities.org/id/metropolitan-district-council/wolverhampton","E01510300000000","200.00","MASH","6011","Financial Assistance In Exceptional Circ","17/07/2017"
"Wolverhampton City Council","http://opendatacommunities.org/id/metropolitan-district-council/wolverhampton","POST OFFICE COUNTER","117.50","LAC Team","9402","Comms - Postage","17/07/2017"
"Wolverhampton City Council","http://opendatacommunities.org/id/metropolitan-district-council/wolverhampton","FANCY SILK STORE","39.90","Craftplay","5714","Equipment - Purchase","17/07/2017"
"Wolverhampton City Council","http://opendatacommunities.org/id/metropolitan-district-council/wolverhampton","BLAS AR FWYD CYF","61.60","Towers Outdoor Education Centre","5812","Provisions (Not for resale)","17/07/2017"
"Wolverhampton City Council","http://opendatacommunities.org/id/metropolitan-district-council/wolverhampton","AMAZON.CO.UK","39.98","Technical Support","5999","Equipment - Purchase","17/07/2017"
"Wolverhampton City Council","http://opendatacommunities.org/id/metropolitan-district-council/wolverhampton","MARKS&SPENCER PLC SACA","22.55","Admin & Support","5411","Provisions (Not for resale)","17/07/2017"
"Wolverhampton City Council","http://opendatacommunities.org/id/metropolitan-district-council/wolverhampton","MONSTER UK","190.00","City Direct","7375","Services - Fees and Charges","17/07/2017"
"Wolverhampton City Council","http://opendatacommunities.org/id/metropolitan-district-council/wolverhampton","LOOP11.COM","158.39","City Direct","7372","Computing - Purchase of Software","17/07/2017"
"Wolverhampton City Council","http://opendatacommunities.org/id/metropolitan-district-council/wolverhampton","ITUNES.COM/BILL","2.07","LAC Education Team (LACE)","5735","Computing - Purchase of Software","17/07/2017"
"Wolverhampton City Council","http://opendatacommunities.org/id/metropolitan-district-council/wolverhampton","ARGOS RETAIL GROUP","9.99","LAC Transitions Team","5310","Client Allowances","17/07/2017"
"Wolverhampton City Council","http://opendatacommunities.org/id/metropolitan-district-council/wolverhampton","RAMADA INNS","389.10","Adoption and Residence Team & Allowances","3637","Services - Fees and Charges","17/07/2017"
"Wolverhampton City Council","http://opendatacommunities.org/id/metropolitan-district-council/wolverhampton","PREMIER INN","218.98","Adoption and Residence Team & Allowances","3811","Services - Supplies & Services to users","17/07/2017"
"Wolverhampton City Council","http://opendatacommunities.org/id/metropolitan-district-council/wolverhampton","CUMMINGS BROTHERS LOCK","37.00","Public Conveniences","7399","Equipment - Purchase","17/07/2017"
"Wolverhampton City Council","http://opendatacommunities.org/id/metropolitan-district-council/wolverhampton","B & Q 1243","50.23","Public Conveniences","5211","Materials","17/07/2017"
"Wolverhampton City Council","http://opendatacommunities.org/id/metropolitan-district-council/wolverhampton","Amazon EU","17.99","Strategic ICTS (ICT Serv Budget)","5969","Equipment - Purchase","17/07/2017"
"Wolverhampton City Council","http://opendatacommunities.org/id/metropolitan-district-council/wolverhampton","PREMIER INN","1457.85","Strategic ICTS (ICT Serv Budget)","3811","Services - Supplies & Services to users","17/07/2017"
"Wolverhampton City Council","http://opendatacommunities.org/id/metropolitan-district-council/wolverhampton","AMAZON.CO.UK","18.99","Upper Pendeford Farm Childrens Home","5999","Equipment - Purchase","17/07/2017"
"Wolverhampton City Council","http://opendatacommunities.org/id/metropolitan-district-council/wolverhampton","PREMIER INN","163.50","Adoption and Residence Team & Allowances","3811","Services - Supplies & Services to users","17/07/2017"
"Wolverhampton City Council","http://opendatacommunities.org/id/metropolitan-district-council/wolverhampton","CORAM ACADEMY LTD","72.30","Fostering Team & Allowances","8398","Services - Supplies & Services to users","17/07/2017"
"Wolverhampton City Council","http://opendatacommunities.org/id/metropolitan-district-council/wolverhampton","AUTOBASE (GB) LIMITED","-94.47","Fleet Management","7538","Equipment - Purchase","17/07/2017"
"Wolverhampton City Council","http://opendatacommunities.org/id/metropolitan-district-council/wolverhampton","AMAZON.CO.UK","457.33","Landscape","5815","Computing - Purchase of Software","17/07/2017"
"Wolverhampton City Council","http://opendatacommunities.org/id/metropolitan-district-council/wolverhampton","POST OFFICE COUNTER","121.00","EIP Locality 7","9402","Comms - Postage","17/07/2017"
"Wolverhampton City Council","http://opendatacommunities.org/id/metropolitan-district-council/wolverhampton","EAST & WEST AID","380.00","CIN/CP Social Work Unit - Area 3","8398","Equipment - Purchase","17/07/2017"
"Wolverhampton City Council","http://opendatacommunities.org/id/metropolitan-district-council/wolverhampton","HOTEL ROMA","182.70","GEN Y City Transnational","7011","Services - Supplies & Services to users","17/07/2017"
"Wolverhampton City Council","http://opendatacommunities.org/id/metropolitan-district-council/wolverhampton","HOTEL ROMA","266.73","GEN Y City Transnational","7011","Services - Supplies & Services to users","17/07/2017"
"Wolverhampton City Council","http://opendatacommunities.org/id/metropolitan-district-council/wolverhampton","POUNDLAND LTD 1463","4.00","Admin & Support","5310","Equipment - Purchase","17/07/2017"
"Wolverhampton City Council","http://opendatacommunities.org/id/metropolitan-district-council/wolverhampton","W M MORRISON PLC","17.00","Ernest Bold Court","5411","Provisions (Not for resale)","17/07/2017"
"Wolverhampton City Council","http://opendatacommunities.org/id/metropolitan-district-council/wolverhampton","ASDA HOME SHOPPING","86.01","Ernest Bold Court","5411","Provisions (Not for resale)","17/07/2017"
"Wolverhampton City Council","http://opendatacommunities.org/id/metropolitan-district-council/wolverhampton","MONMORE GREEN STAD","133.33","Business Engagement","5812","Room Hire","17/07/2017"
"Wolverhampton City Council","http://opendatacommunities.org/id/metropolitan-district-council/wolverhampton","HM COURTS & TRIBUN","-140.00","CIN/CP Social Work Unit - Area 5","9399","No Recourse to Public Funds","17/07/2017"
"Wolverhampton City Council","http://opendatacommunities.org/id/metropolitan-district-council/wolverhampton","BRITANNIA","32.50","CIN/CP Social Work Unit - Area 5","7011","Section 17","17/07/2017"
"Wolverhampton City Council","http://opendatacommunities.org/id/metropolitan-district-council/wolverhampton","BRITANNIA","28.33","CIN/CP Social Work Unit - Area 5","7011","Section 17","17/07/2017"
"Wolverhampton City Council","http://opendatacommunities.org/id/metropolitan-district-council/wolverhampton","YMLP.COM","105.00","Audience Development","7372","Marketing \ Non-staff advertising","17/07/2017"
"Wolverhampton City Council","http://opendatacommunities.org/id/metropolitan-district-council/wolverhampton","WWW.ICO.GOV.UK","35.00","Box Office Administration","9399","Services - General Licences","17/07/2017"
"Wolverhampton City Council","http://opendatacommunities.org/id/metropolitan-district-council/wolverhampton","INSTITUTELI","341.67","Central Training","8699","Training Expenses","17/07/2017"
"Wolverhampton City Council","http://opendatacommunities.org/id/metropolitan-district-council/wolverhampton","OYSTER AUTOTOPUP","20.00","Legal Services","4112","Public Transport","17/07/2017"
"Wolverhampton City Council","http://opendatacommunities.org/id/metropolitan-district-council/wolverhampton","POUNDLAND LTD 1463","2.50","Legal Services","5310","Catering","17/07/2017"
"Wolverhampton City Council","http://opendatacommunities.org/id/metropolitan-district-council/wolverhampton","ARGOS RETAIL GROUP","191.59","Children & Family Contact Services","5310","Equipment - Purchase","17/07/2017"
"Wolverhampton City Council","http://opendatacommunities.org/id/metropolitan-district-council/wolverhampton","HOMEBASE LTD 103","52.44","Children & Family Contact Services","5211","Equipment - Purchase","17/07/2017"
"Wolverhampton City Council","http://opendatacommunities.org/id/metropolitan-district-council/wolverhampton","MIDLAND HOTEL","233.33","Delivery & OCE Development","7011","Accommodation Costs","14/07/2017"
"Wolverhampton City Council","http://opendatacommunities.org/id/metropolitan-district-council/wolverhampton","Amazon UK Marketplace","178.80","Upper Pendeford Farm Childrens Home","5942","Books","14/07/2017"
"Wolverhampton City Council","http://opendatacommunities.org/id/metropolitan-district-council/wolverhampton","THE QUEEN VICTORIA HOT","210.00","Emergency Duty Team","7011","Services - Supplies & Services to users","14/07/2017"
"Wolverhampton City Council","http://opendatacommunities.org/id/metropolitan-district-council/wolverhampton","ASDA HOME SHOPPING","-2.28","Upper Pendeford Farm Childrens Home","5411","Provisions (Not for resale)","14/07/2017"
"Wolverhampton City Council","http://opendatacommunities.org/id/metropolitan-district-council/wolverhampton","ASDA HOME SHOPPING","210.84","Upper Pendeford Farm Childrens Home","5411","Provisions (Not for resale)","14/07/2017"
"Wolverhampton City Council","http://opendatacommunities.org/id/metropolitan-district-council/wolverhampton","Trainline","35.65","Electoral Registration","4112","Public Transport","14/07/2017"
"Wolverhampton City Council","http://opendatacommunities.org/id/metropolitan-district-council/wolverhampton","GO CARZ","47.31","CIN/CP Social Work Unit - Area 6","4121","Section 17","14/07/2017"
"Wolverhampton City Council","http://opendatacommunities.org/id/metropolitan-district-council/wolverhampton","AMAZON UK RETAIL AMAZO","12.35","Education And Access","5999","Materials","14/07/2017"
"Wolverhampton City Council","http://opendatacommunities.org/id/metropolitan-district-council/wolverhampton","OFFICIALRECORDCOUK","15.98","CIN/CP Social Work Unit - Area 7","7392","Section 17","14/07/2017"
"Wolverhampton City Council","http://opendatacommunities.org/id/metropolitan-district-council/wolverhampton","WWW.ONEDIRECT.CO.UK","189.99","Welfare Rights","4812","Equipment - Purchase","14/07/2017"
"Wolverhampton City Council","http://opendatacommunities.org/id/metropolitan-district-council/wolverhampton","AAIA","395.00","School Improvement","8299","Training Expenses","14/07/2017"
"Wolverhampton City Council","http://opendatacommunities.org/id/metropolitan-district-council/wolverhampton","POST OFFICE COUNTER","228.00","Fostering Team & Allowances","9402","Comms - Postage","14/07/2017"
"Wolverhampton City Council","http://opendatacommunities.org/id/metropolitan-district-council/wolverhampton","AMZ yagexun","-2.53","Street Cleansing Overheads","5999","Equipment - Purchase","14/07/2017"
"Wolverhampton City Council","http://opendatacommunities.org/id/metropolitan-district-council/wolverhampton","BRITANNIA","500.00","CIN/CP Social Work Unit - Area 3","7011","Accommodation Costs","14/07/2017"
"Wolverhampton City Council","http://opendatacommunities.org/id/metropolitan-district-council/wolverhampton","CUMMINGS BROTHERS LOCK","15.50","Cleaning of Buildings - General","7399","Equipment - Purchase","14/07/2017"
"Wolverhampton City Council","http://opendatacommunities.org/id/metropolitan-district-council/wolverhampton","DIRECT CARPETS","440.00","EIP Locality 1","5713","Grant Payments","14/07/2017"
"Wolverhampton City Council","http://opendatacommunities.org/id/metropolitan-district-council/wolverhampton","Amazon EU","18.39","EIP Locality 1","5969","Equipment - Purchase","14/07/2017"
"Wolverhampton City Council","http://opendatacommunities.org/id/metropolitan-district-council/wolverhampton","Amazon EU","15.09","EIP Locality 1","5969","Equipment - Purchase","14/07/2017"
"Wolverhampton City Council","http://opendatacommunities.org/id/metropolitan-district-council/wolverhampton","POST OFFICE COUNTER","114.00","Carers Support","9402","Comms - Postage","14/07/2017"
"Wolverhampton City Council","http://opendatacommunities.org/id/metropolitan-district-council/wolverhampton","GO CARZ","49.83","CIN/CP Social Work Unit - Area 6","4121","Section 17","14/07/2017"
"Wolverhampton City Council","http://opendatacommunities.org/id/metropolitan-district-council/wolverhampton","M&S SIMPLY FOOD - SSP","6.70","GEN Y City Transnational","5499","Catering","14/07/2017"
"Wolverhampton City Council","http://opendatacommunities.org/id/metropolitan-district-council/wolverhampton","FACEBK TY29VBWA82","34.96","Communications & Marketing - General","7311","Marketing \ Non-staff advertising","14/07/2017"
"Wolverhampton City Council","http://opendatacommunities.org/id/metropolitan-district-council/wolverhampton","FACEBK RY29VBWA82","292.60","Communications & Marketing - General","7311","Marketing \ Non-staff advertising","14/07/2017"
"Wolverhampton City Council","http://opendatacommunities.org/id/metropolitan-district-council/wolverhampton","SPECSAVERSEVOUGB-","730.86","HR Advice","8043","Services - Professional Fees","14/07/2017"
"Wolverhampton City Council","http://opendatacommunities.org/id/metropolitan-district-council/wolverhampton","BLOOMS MENSWEAR","16.66","Mayoral Expenses","5611","Clothing / Uniforms","14/07/2017"
"Wolverhampton City Council","http://opendatacommunities.org/id/metropolitan-district-council/wolverhampton","NOTEMACHINE","100.00","Childrens with Disabilities Team","6011","Comms - Postage","14/07/2017"
"Wolverhampton City Council","http://opendatacommunities.org/id/metropolitan-district-council/wolverhampton","NOTEMACHINE","250.00","Childrens with Disabilities Team","6011","No Recourse to Public Funds","14/07/2017"
"Wolverhampton City Council","http://opendatacommunities.org/id/metropolitan-district-council/wolverhampton","POUNDWORLD RETAIL","2.50","City Direct","5310","Equipment - Purchase","14/07/2017"
"Wolverhampton City Council","http://opendatacommunities.org/id/metropolitan-district-council/wolverhampton","POUNDLAND LTD 1463","1.67","City Direct","5310","Equipment - Purchase","14/07/2017"
"Wolverhampton City Council","http://opendatacommunities.org/id/metropolitan-district-council/wolverhampton","TOTALJOBS GROUP LTD","74.00","City Direct","2741","Publications","14/07/2017"
"Wolverhampton City Council","http://opendatacommunities.org/id/metropolitan-district-council/wolverhampton","MIDLAND HOTEL","233.33","Members Expenses","7011","Accommodation Costs","14/07/2017"
"Wolverhampton City Council","http://opendatacommunities.org/id/metropolitan-district-council/wolverhampton","Virgin Trains","5.10","Members Expenses","4112","Public Transport","13/07/2017"
"Wolverhampton City Council","http://opendatacommunities.org/id/metropolitan-district-council/wolverhampton","TFM FARM & COUNTRY SUP","105.39","Northicote Farm","5399","Materials","13/07/2017"
"Wolverhampton City Council","http://opendatacommunities.org/id/metropolitan-district-council/wolverhampton","HALFORDS 0775","120.00","Education Catering - General Overheads","5940","School Meals","13/07/2017"
"Wolverhampton City Council","http://opendatacommunities.org/id/metropolitan-district-council/wolverhampton","PRACTICE EN","36.00","Central Training","7299","Training Expenses","13/07/2017"
"Wolverhampton City Council","http://opendatacommunities.org/id/metropolitan-district-council/wolverhampton","TICKETS08712200260","99.00","Central Training","7922","Training Expenses","13/07/2017"
"Wolverhampton City Council","http://opendatacommunities.org/id/metropolitan-district-council/wolverhampton","WWW.CARESHOP.CO.UK","13.81","Ernest Bold Court","5999","Equipment - Purchase","13/07/2017"
"Wolverhampton City Council","http://opendatacommunities.org/id/metropolitan-district-council/wolverhampton","WWW.CARESHOP.CO.UK","76.95","Ernest Bold Court","5999","Equipment - Purchase","13/07/2017"
"Wolverhampton City Council","http://opendatacommunities.org/id/metropolitan-district-council/wolverhampton","SWIFT SAVE UK LTD","45.00","Children & Family Contact Services","5200","Equipment - Purchase","13/07/2017"
"Wolverhampton City Council","http://opendatacommunities.org/id/metropolitan-district-council/wolverhampton","GO CARZ","13.12","Legal Services","4121","Client Transport","13/07/2017"
"Wolverhampton City Council","http://opendatacommunities.org/id/metropolitan-district-council/wolverhampton","OYSTER ISSUE WEB","15.00","Legal Services","4112","Public Transport","13/07/2017"
"Wolverhampton City Council","http://opendatacommunities.org/id/metropolitan-district-council/wolverhampton","THE VAN HUBB LTD","45.00","Fleet Management","7538","Equipment - Purchase","13/07/2017"
"Wolverhampton City Council","http://opendatacommunities.org/id/metropolitan-district-council/wolverhampton","ENTERPRISE RENT-A-CAR","-200.00","CIN/CP Social Work Unit - Area 1","3405","Hire of Vehicles","13/07/2017"
"Wolverhampton City Council","http://opendatacommunities.org/id/metropolitan-district-council/wolverhampton","POST OFFICE COUNTER","8.55","Adoption and Residence Team & Allowances","9402","Comms - Postage","13/07/2017"
"Wolverhampton City Council","http://opendatacommunities.org/id/metropolitan-district-council/wolverhampton","Akzonobel","218.76","Maintenance of Exhibits","5198","Materials","13/07/2017"
"Wolverhampton City Council","http://opendatacommunities.org/id/metropolitan-district-council/wolverhampton","CARVER/WOLVERHAMPTON/L","20.11","Ground Maintenance East","5211","Materials","13/07/2017"
"Wolverhampton City Council","http://opendatacommunities.org/id/metropolitan-district-council/wolverhampton","THE WORKS","8.50","Communications & Marketing - General","5310","Equipment - Purchase","13/07/2017"
"Wolverhampton City Council","http://opendatacommunities.org/id/metropolitan-district-council/wolverhampton","FLYBE.COM GKS23R       0","244.60","Headstart Phase 3","4511","Public Transport","13/07/2017"
"Wolverhampton City Council","http://opendatacommunities.org/id/metropolitan-district-council/wolverhampton","PO THE SCOTLANDS 2232","300.00","Headstart Phase 3","6011","Financial Assistance In Exceptional Circ","13/07/2017"
"Wolverhampton City Council","http://opendatacommunities.org/id/metropolitan-district-council/wolverhampton","TEX MEADOWVALEGAR","92.47","Towers Outdoor Education Centre","5541","Petrol","13/07/2017"
"Wolverhampton City Council","http://opendatacommunities.org/id/metropolitan-district-council/wolverhampton","UC software-bill.com","16.62","Towers Outdoor Education Centre","5734","Equipment - Purchase","13/07/2017"
"Wolverhampton City Council","http://opendatacommunities.org/id/metropolitan-district-council/wolverhampton","NORTH WALES LIGHTING","126.30","Towers Outdoor Education Centre","5251","Equipment - Purchase","13/07/2017"
"Wolverhampton City Council","http://opendatacommunities.org/id/metropolitan-district-council/wolverhampton","C L JONES LIMITED","55.22","Towers Outdoor Education Centre","5211","Equipment - Purchase","13/07/2017"
"Wolverhampton City Council","http://opendatacommunities.org/id/metropolitan-district-council/wolverhampton","STERMAT CAR AND VA","1570.80","Towers Outdoor Education Centre","5541","Hire of Vehicles","13/07/2017"
"Wolverhampton City Council","http://opendatacommunities.org/id/metropolitan-district-council/wolverhampton","STERMAT CAR AND VA","1428.00","Towers Outdoor Education Centre","5541","Hire of Vehicles","13/07/2017"
"Wolverhampton City Council","http://opendatacommunities.org/id/metropolitan-district-council/wolverhampton","CATERING - SCIENCE PAR","2.45","Headstart - Young People Engagement","8220","Subsistence","13/07/2017"
"Wolverhampton City Council","http://opendatacommunities.org/id/metropolitan-district-council/wolverhampton","ASDA SUPERSTORE","15.97","Mayoral Expenses","5411","Hospitality","13/07/2017"
"Wolverhampton City Council","http://opendatacommunities.org/id/metropolitan-district-council/wolverhampton","MARKS&SPENCER PLC SACA","22.74","Admin & Support","5411","Provisions (Not for resale)","13/07/2017"
"Wolverhampton City Council","http://opendatacommunities.org/id/metropolitan-district-council/wolverhampton","LOYD WEDNESFIELD WOLVE","200.00","EIP Locality 8","6011","Grant Payments","13/07/2017"
"Wolverhampton City Council","http://opendatacommunities.org/id/metropolitan-district-council/wolverhampton","Photobox Limited","32.50","Towers Outdoor Education Centre","2741","Equipment - Purchase","13/07/2017"
"Wolverhampton City Council","http://opendatacommunities.org/id/metropolitan-district-council/wolverhampton","AMAZON.CO.UK","19.64","Global Budgets","5999","Books","13/07/2017"
"Wolverhampton City Council","http://opendatacommunities.org/id/metropolitan-district-council/wolverhampton","Amazon Prime","-7.99","EIP Locality 3","5968","Subscriptions","13/07/2017"
"Wolverhampton City Council","http://opendatacommunities.org/id/metropolitan-district-council/wolverhampton","Amazon EU","222.92","Environmental Health - Pub Prot - Gen","5969","Equipment - Purchase","13/07/2017"
"Wolverhampton City Council","http://opendatacommunities.org/id/metropolitan-district-council/wolverhampton","Amazon UK Marketplace","15.77","Education And Access","5942","Materials","13/07/2017"
"Wolverhampton City Council","http://opendatacommunities.org/id/metropolitan-district-council/wolverhampton","Amazon UK Marketplace","11.76","Education And Access","5942","Materials","13/07/2017"
"Wolverhampton City Council","http://opendatacommunities.org/id/metropolitan-district-council/wolverhampton","AMAZON.CO.UK","23.30","LAC Education Team (LACE)","5999","Equipment - Purchase","13/07/2017"
"Wolverhampton City Council","http://opendatacommunities.org/id/metropolitan-district-council/wolverhampton","Virgin Trains","223.00","Adoption and Residence Team & Allowances","4112","Public Transport","13/07/2017"
"Wolverhampton City Council","http://opendatacommunities.org/id/metropolitan-district-council/wolverhampton","TVLICENSING.CO.UK","147.00","LAC Transitions Team","7392","Client Allowances","13/07/2017"
"Wolverhampton City Council","http://opendatacommunities.org/id/metropolitan-district-council/wolverhampton","Trainline","8.52","Children & Young People Support Costs","4112","Public Transport","13/07/2017"
"Wolverhampton City Council","http://opendatacommunities.org/id/metropolitan-district-council/wolverhampton","CUMMINGS BROTHERS LOCK","4.17","Caretakers Community Centre","7399","R&M - Departmental planned (external)","13/07/2017"
"Wolverhampton City Council","http://opendatacommunities.org/id/metropolitan-district-council/wolverhampton","B & Q 1243","64.80","Cleaning of Buildings - General","5211","Materials","13/07/2017"
"Wolverhampton City Council","http://opendatacommunities.org/id/metropolitan-district-council/wolverhampton","CARVER/WOLVERHAMPTON/L","46.81","Cleaning of Buildings - General","5211","Materials","13/07/2017"
"Wolverhampton City Council","http://opendatacommunities.org/id/metropolitan-district-council/wolverhampton","PO WILLENHALL RD 5497","20.00","EIP Locality 1","6011","Grant Payments","13/07/2017"
"Wolverhampton City Council","http://opendatacommunities.org/id/metropolitan-district-council/wolverhampton","Amazon UK Marketplace","11.32","Education And Access","5942","Materials","12/07/2017"
"Wolverhampton City Council","http://opendatacommunities.org/id/metropolitan-district-council/wolverhampton","CIEH","192.00","Central Training","8699","Training Expenses","12/07/2017"
"Wolverhampton City Council","http://opendatacommunities.org/id/metropolitan-district-council/wolverhampton","PAYPAL  PUBLICLAWPR","304.00","Workforce Development","8398","Training Expenses","12/07/2017"
"Wolverhampton City Council","http://opendatacommunities.org/id/metropolitan-district-council/wolverhampton","ASDA SUPERSTORE","16.08","Legal Services","5411","Stationery","12/07/2017"
"Wolverhampton City Council","http://opendatacommunities.org/id/metropolitan-district-council/wolverhampton","Trainline","24.63","Legal Services","4112","Public Transport","12/07/2017"
"Wolverhampton City Council","http://opendatacommunities.org/id/metropolitan-district-council/wolverhampton","THE RANGE","141.62","Ernest Bold Court","5311","Equipment - Purchase","12/07/2017"
"Wolverhampton City Council","http://opendatacommunities.org/id/metropolitan-district-council/wolverhampton","ASDA SUPERSTORE","3.50","CIN/CP Social Work Unit - Area 5","5411","Provisions (Not for resale)","12/07/2017"
"Wolverhampton City Council","http://opendatacommunities.org/id/metropolitan-district-council/wolverhampton","ASDA SUPERSTORE","7.00","CIN/CP Social Work Unit - Area 5","5411","Provisions (Not for resale)","12/07/2017"
"Wolverhampton City Council","http://opendatacommunities.org/id/metropolitan-district-council/wolverhampton","ASDA SUPERSTORE","12.50","CIN/CP Social Work Unit - Area 5","5411","Provisions (Not for resale)","12/07/2017"
"Wolverhampton City Council","http://opendatacommunities.org/id/metropolitan-district-council/wolverhampton","ASDA SUPERSTORE","14.61","CIN/CP Social Work Unit - Area 5","5411","Provisions (Not for resale)","12/07/2017"
"Wolverhampton City Council","http://opendatacommunities.org/id/metropolitan-district-council/wolverhampton","VANQUISH INTEGRATED PE","110.00","Passenger Transport - General","5734","Computing - Consumables","12/07/2017"
"Wolverhampton City Council","http://opendatacommunities.org/id/metropolitan-district-council/wolverhampton","ENTERPRISE RENT-A-CAR","256.59","CIN/CP Social Work Unit - Area 1","3405","Hire of Vehicles","12/07/2017"
"Wolverhampton City Council","http://opendatacommunities.org/id/metropolitan-district-council/wolverhampton","LIDL UK","4.16","Headstart - Young People Engagement","5411","Stationery","12/07/2017"
"Wolverhampton City Council","http://opendatacommunities.org/id/metropolitan-district-council/wolverhampton","WALSALL COUNCIL","70.00","Register Office","9399","Services - Fees and Charges","12/07/2017"
"Wolverhampton City Council","http://opendatacommunities.org/id/metropolitan-district-council/wolverhampton","DIRECTLINE-FLIGHTS","242.39","Leonardo Da Vinci Project","4722","Public Transport","12/07/2017"
"Wolverhampton City Council","http://opendatacommunities.org/id/metropolitan-district-council/wolverhampton","HOMERS TRAVEL","60.00","Admin & Support","4121","Client Transport","12/07/2017"
"Wolverhampton City Council","http://opendatacommunities.org/id/metropolitan-district-council/wolverhampton","ARGOS LTD","402.91","LAC Transitions Team","5310","Client Allowances","12/07/2017"
"Wolverhampton City Council","http://opendatacommunities.org/id/metropolitan-district-council/wolverhampton","ARGOS LTD","154.92","LAC Transitions Team","5310","Client Allowances","12/07/2017"
"Wolverhampton City Council","http://opendatacommunities.org/id/metropolitan-district-council/wolverhampton","ARGOS LTD","191.66","LAC Transitions Team","5310","Client Allowances","12/07/2017"
"Wolverhampton City Council","http://opendatacommunities.org/id/metropolitan-district-council/wolverhampton","CT WOLVERHAMPTON","15.00","LAC Transitions Team","8398","Client Allowances","12/07/2017"
"Wolverhampton City Council","http://opendatacommunities.org/id/metropolitan-district-council/wolverhampton","CHILLINGTON SELF STORA","90.64","CIN/CP Social Work Unit - Area 1","4214","Storage","12/07/2017"
"Wolverhampton City Council","http://opendatacommunities.org/id/metropolitan-district-council/wolverhampton","CHILLINGTON SELF STORA","178.00","CIN/CP Social Work Unit - Area 1","4214","Storage","12/07/2017"
"Wolverhampton City Council","http://opendatacommunities.org/id/metropolitan-district-council/wolverhampton","B&M RETAIL","16.66","LAC Transitions Team","5310","Client Allowances","12/07/2017"
"Wolverhampton City Council","http://opendatacommunities.org/id/metropolitan-district-council/wolverhampton","B&M RETAIL","58.23","LAC Transitions Team","5310","Client Allowances","12/07/2017"
"Wolverhampton City Council","http://opendatacommunities.org/id/metropolitan-district-council/wolverhampton","DUNELM (SOFT FURNISHIN","68.75","LAC Transitions Team","5714","Client Allowances","12/07/2017"
"Wolverhampton City Council","http://opendatacommunities.org/id/metropolitan-district-council/wolverhampton","HOME BARGAINS","5.73","Adoption and Residence Team & Allowances","5251","Stationery","12/07/2017"
"Wolverhampton City Council","http://opendatacommunities.org/id/metropolitan-district-council/wolverhampton","HOBBY CRAFT LTD","108.33","Adoption and Residence Team & Allowances","5970","Stationery","12/07/2017"
"Wolverhampton City Council","http://opendatacommunities.org/id/metropolitan-district-council/wolverhampton","NOTEMACHINE","250.00","CIN/CP Social Work Unit - Area 6","6011","Financial Assistance In Exceptional Circ","12/07/2017"
"Wolverhampton City Council","http://opendatacommunities.org/id/metropolitan-district-council/wolverhampton","BRITISH HEART FOUNDATI","205.00","LAC Transitions Team","8398","Client Allowances","12/07/2017"
"Wolverhampton City Council","http://opendatacommunities.org/id/metropolitan-district-council/wolverhampton","SAINSBURYS 2040","299.06","LAC Transitions Team","5411","Client Allowances","12/07/2017"
"Wolverhampton City Council","http://opendatacommunities.org/id/metropolitan-district-council/wolverhampton","WWW.WMCA.CO.UK","63.00","Strategic ICTS (ICT Serv Budget)","9399","Public Transport","12/07/2017"
"Wolverhampton City Council","http://opendatacommunities.org/id/metropolitan-district-council/wolverhampton","Amazon UK Marketplace","107.85","Strategic ICTS (ICT Serv Budget)","5942","Computing - Purchase of Hardware","12/07/2017"
"Wolverhampton City Council","http://opendatacommunities.org/id/metropolitan-district-council/wolverhampton","HIGHFIELD HOUSE HO","385.00","CIN/CP Social Work Unit - Area 3","7011","Accommodation Costs","12/07/2017"
"Wolverhampton City Council","http://opendatacommunities.org/id/metropolitan-district-council/wolverhampton","Virgin Trains","24.60","Corporate Procurement Unit","4112","Public Transport","12/07/2017"
"Wolverhampton City Council","http://opendatacommunities.org/id/metropolitan-district-council/wolverhampton","ARGOS RETAIL GROUP","149.97","Central Baths","5310","Equipment - Purchase","12/07/2017"
"Wolverhampton City Council","http://opendatacommunities.org/id/metropolitan-district-council/wolverhampton","WWW.WMCA.CO.UK","12.50","CIN/CP Social Work Unit - Area 3","9399","Services - Fees and Charges","12/07/2017"
"Wolverhampton City Council","http://opendatacommunities.org/id/metropolitan-district-council/wolverhampton","Amazon EU","43.00","Upper Pendeford Farm Childrens Home","5969","Equipment - Purchase","12/07/2017"
"Wolverhampton City Council","http://opendatacommunities.org/id/metropolitan-district-council/wolverhampton","E01510300000000","100.00","Emergency Duty Team","6011","Financial Assistance In Exceptional Circ","12/07/2017"
"Wolverhampton City Council","http://opendatacommunities.org/id/metropolitan-district-council/wolverhampton","TESCO STORES 5397","7.63","EIP Locality 1","5411","Cleaning Supplies and Materials","12/07/2017"
"Wolverhampton City Council","http://opendatacommunities.org/id/metropolitan-district-council/wolverhampton","ARGOS RETAIL GROUP","35.76","EIP Locality 1","5310","Equipment - Purchase","12/07/2017"
"Wolverhampton City Council","http://opendatacommunities.org/id/metropolitan-district-council/wolverhampton","SAINSBURYS 2040","42.74","Duke Street Bungalows","5411","Provisions (Not for resale)","12/07/2017"
"Wolverhampton City Council","http://opendatacommunities.org/id/metropolitan-district-council/wolverhampton","TESCO STORES 5194","228.18","Towers Outdoor Education Centre","5411","Provisions (Not for resale)","12/07/2017"
"Wolverhampton City Council","http://opendatacommunities.org/id/metropolitan-district-council/wolverhampton","HSBC INVOICE FINAN","356.20","Towers Outdoor Education Centre","6012","Laundry Expenses","12/07/2017"
"Wolverhampton City Council","http://opendatacommunities.org/id/metropolitan-district-council/wolverhampton","FUEL CARD SERVICES LTD","454.52","Towers Outdoor Education Centre","7399","Petrol","12/07/2017"
"Wolverhampton City Council","http://opendatacommunities.org/id/metropolitan-district-council/wolverhampton","NORTHERN POTTERY LTD","5.72","Towers Outdoor Education Centre","5999","Equipment - Purchase","12/07/2017"
"Wolverhampton City Council","http://opendatacommunities.org/id/metropolitan-district-council/wolverhampton","HARLECH FOODSERVICE LT","74.56","Towers Outdoor Education Centre","5422","Catering","12/07/2017"
"Wolverhampton City Council","http://opendatacommunities.org/id/metropolitan-district-council/wolverhampton","WYNNSTAY ARGICULTURAL","15.82","Towers Outdoor Education Centre","5311","Equipment - Purchase","12/07/2017"
"Wolverhampton City Council","http://opendatacommunities.org/id/metropolitan-district-council/wolverhampton","CHEMSOL CYMRU LTD","534.59","Towers Outdoor Education Centre","5199","Fixtures and Fittings - R&M","12/07/2017"
"Wolverhampton City Council","http://opendatacommunities.org/id/metropolitan-district-council/wolverhampton","HN NUTTALL LTD","530.86","Towers Outdoor Education Centre","5085","Provisions (Not for resale)","12/07/2017"
"Wolverhampton City Council","http://opendatacommunities.org/id/metropolitan-district-council/wolverhampton","COTSWOLD OUTDOOR-MAIL","521.33","Towers Outdoor Education Centre","5691","Equipment - Purchase","12/07/2017"
"Wolverhampton City Council","http://opendatacommunities.org/id/metropolitan-district-council/wolverhampton","AMAZON.CO.UK","7.99","Global Budgets","5999","Equipment - Purchase","12/07/2017"
"Wolverhampton City Council","http://opendatacommunities.org/id/metropolitan-district-council/wolverhampton","WWW.ARGOS.CO.UK","207.50","LAC Transitions Team","5310","Client Allowances","12/07/2017"
"Wolverhampton City Council","http://opendatacommunities.org/id/metropolitan-district-council/wolverhampton","Trainline","199.41","Head of Service - LAC","4112","Public Transport","12/07/2017"
"Wolverhampton City Council","http://opendatacommunities.org/id/metropolitan-district-council/wolverhampton","POST OFFICE COUNTER","7.80","Head of Service - CINCP","9402","Comms - Postage","12/07/2017"
"Wolverhampton City Council","http://opendatacommunities.org/id/metropolitan-district-council/wolverhampton","MOGUL STONE","20.00","Play General","5211","Materials","12/07/2017"
"Wolverhampton City Council","http://opendatacommunities.org/id/metropolitan-district-council/wolverhampton","WWW.ARGOS.CO.UK","74.94","CIN/CP Social Work Unit - Area 5","5310","No Recourse to Public Funds","12/07/2017"
"Wolverhampton City Council","http://opendatacommunities.org/id/metropolitan-district-council/wolverhampton","Amazon UK Marketplace","62.45","Education And Access","5942","Materials","12/07/2017"
"Wolverhampton City Council","http://opendatacommunities.org/id/metropolitan-district-council/wolverhampton","WILKO RETAIL LIMIT","31.00","Duke Street Bungalows","5722","Equipment - Purchase","11/07/2017"
"Wolverhampton City Council","http://opendatacommunities.org/id/metropolitan-district-council/wolverhampton","BRTMKT DBA FastSpring","5.05","Technical Support","5818","Subscriptions","11/07/2017"
"Wolverhampton City Council","http://opendatacommunities.org/id/metropolitan-district-council/wolverhampton","B & Q 1243","8.23","Learning Disabilities Management","5211","Equipment - R & M","11/07/2017"
"Wolverhampton City Council","http://opendatacommunities.org/id/metropolitan-district-council/wolverhampton","CURRYS ONLINE","158.32","LAC Transitions Team","5732","Client Allowances","11/07/2017"
"Wolverhampton City Council","http://opendatacommunities.org/id/metropolitan-district-council/wolverhampton","WWW.BEDS.CO.UK","89.17","LAC Transitions Team","5712","Client Allowances","11/07/2017"
"Wolverhampton City Council","http://opendatacommunities.org/id/metropolitan-district-council/wolverhampton","ASDA HOME SHOPPING","84.17","Ernest Bold Court","5411","Provisions (Not for resale)","11/07/2017"
"Wolverhampton City Council","http://opendatacommunities.org/id/metropolitan-district-council/wolverhampton","S & B WASTE","169.50","College of Further Education","4900","Refuse Collection","11/07/2017"
"Wolverhampton City Council","http://opendatacommunities.org/id/metropolitan-district-council/wolverhampton","S & B WASTE","169.50","College of Further Education","4900","Refuse Collection","11/07/2017"
"Wolverhampton City Council","http://opendatacommunities.org/id/metropolitan-district-council/wolverhampton","FLAVOUR OF PARADISE CA","577.00","Creative Studies Delivery Area","5812","Catering","11/07/2017"
"Wolverhampton City Council","http://opendatacommunities.org/id/metropolitan-district-council/wolverhampton","B & Q 1357","18.67","Play General","5211","Materials","11/07/2017"
"Wolverhampton City Council","http://opendatacommunities.org/id/metropolitan-district-council/wolverhampton","TESCO DIRECT","30.80","CIN/CP Social Work Unit - Area 5","5999","No Recourse to Public Funds","11/07/2017"
"Wolverhampton City Council","http://opendatacommunities.org/id/metropolitan-district-council/wolverhampton","Q-SYSTEMS LIMITED","25.00","The Little Civic","5999","Equipment - R & M","11/07/2017"
"Wolverhampton City Council","http://opendatacommunities.org/id/metropolitan-district-council/wolverhampton","HALFORDS 0775","18.80","Education Catering - General Overheads","5940","School Meals","11/07/2017"
"Wolverhampton City Council","http://opendatacommunities.org/id/metropolitan-district-council/wolverhampton","HALFORDS 0775","199.00","Education Catering - General Overheads","5940","School Meals","11/07/2017"
"Wolverhampton City Council","http://opendatacommunities.org/id/metropolitan-district-council/wolverhampton","ALDI","63.25","Children & Family Contact Services","5411","Provisions (Not for resale)","11/07/2017"
"Wolverhampton City Council","http://opendatacommunities.org/id/metropolitan-district-council/wolverhampton","G & M HALE (SUNDRIES)","13.20","Discretionary Fund","5992","Materials","11/07/2017"
"Wolverhampton City Council","http://opendatacommunities.org/id/metropolitan-district-council/wolverhampton","G & M HALE LTD","62.10","Discretionary Fund","5992","Materials","11/07/2017"
"Wolverhampton City Council","http://opendatacommunities.org/id/metropolitan-district-council/wolverhampton","AMAZON.CO.UK","148.23","Fostering Team & Allowances","5999","Equipment - Purchase","11/07/2017"
"Wolverhampton City Council","http://opendatacommunities.org/id/metropolitan-district-council/wolverhampton","TESCO - Seller_IST_1_2","19.50","CIN/CP Social Work Unit - Area 5","5999","No Recourse to Public Funds","11/07/2017"
"Wolverhampton City Council","http://opendatacommunities.org/id/metropolitan-district-council/wolverhampton","THE QUEEN VICTORIA HOT","55.00","CIN/CP Social Work Unit - Area 1","7011","Hospitality","11/07/2017"
"Wolverhampton City Council","http://opendatacommunities.org/id/metropolitan-district-council/wolverhampton","HOTEL IBIS","65.25","Adoption and Residence Team & Allowances","3533","Accommodation Costs","11/07/2017"
"Wolverhampton City Council","http://opendatacommunities.org/id/metropolitan-district-council/wolverhampton","NOTEMACHINE","250.00","CIN/CP Social Work Unit - Area 6","6011","Financial Assistance In Exceptional Circ","11/07/2017"
"Wolverhampton City Council","http://opendatacommunities.org/id/metropolitan-district-council/wolverhampton","ASDA SUPERSTORE","4.50","Mayoral Expenses","5411","Hospitality","11/07/2017"
"Wolverhampton City Council","http://opendatacommunities.org/id/metropolitan-district-council/wolverhampton","MARKS&SPENCER PLC SACA","27.25","Admin & Support","5411","Provisions (Not for resale)","11/07/2017"
"Wolverhampton City Council","http://opendatacommunities.org/id/metropolitan-district-council/wolverhampton","POUNDLAND LTD 1463","3.00","Admin & Support","5310","Equipment - Purchase","11/07/2017"
"Wolverhampton City Council","http://opendatacommunities.org/id/metropolitan-district-council/wolverhampton","VWO.com","47.24","City Direct","7399","Equipment - Purchase","11/07/2017"
"Wolverhampton City Council","http://opendatacommunities.org/id/metropolitan-district-council/wolverhampton","SALFORD PROFESSIONAL D","390.00","LAC Education Team (LACE)","8299","Training Expenses","11/07/2017"
"Wolverhampton City Council","http://opendatacommunities.org/id/metropolitan-district-council/wolverhampton","CODSALL AND WERGS GC","49.83","Cemeteries","5261","Equipment - Purchase","11/07/2017"
"Wolverhampton City Council","http://opendatacommunities.org/id/metropolitan-district-council/wolverhampton","SP  MUNCO INTERNATION","1242.00","SWP - Infrastructure","5691","Equipment - Purchase","11/07/2017"
"Wolverhampton City Council","http://opendatacommunities.org/id/metropolitan-district-council/wolverhampton","TVLICENSING.CO.UK","147.00","Central Baths","7392","Services - Consultants","11/07/2017"
"Wolverhampton City Council","http://opendatacommunities.org/id/metropolitan-district-council/wolverhampton","WWWBHANGRABLAZECOM","20.00","WV Active Business Support","7997","Services - Professional Fees","11/07/2017"
"Wolverhampton City Council","http://opendatacommunities.org/id/metropolitan-district-council/wolverhampton","TOYS R US","34.99","Upper Pendeford Farm Childrens Home","5311","Equipment - Purchase","11/07/2017"
"Wolverhampton City Council","http://opendatacommunities.org/id/metropolitan-district-council/wolverhampton","Amazon UK Marketplace","20.76","EIP Locality 5","5942","Equipment - Purchase","11/07/2017"
"Wolverhampton City Council","http://opendatacommunities.org/id/metropolitan-district-council/wolverhampton","POST OFFICE COUNTER","4.40","Telecare","9402","Comms - Postage","11/07/2017"
"Wolverhampton City Council","http://opendatacommunities.org/id/metropolitan-district-council/wolverhampton","CAFFE' ROBERTO     798","15.05","GEN Y City Transnational","5813","Educ Trips, Holidays, Outings, Activity","11/07/2017"
"Wolverhampton City Council","http://opendatacommunities.org/id/metropolitan-district-council/wolverhampton","STAFFORDSHIRE COUNTY C","70.00","Register Office","9399","Services - Fees and Charges","11/07/2017"
"Wolverhampton City Council","http://opendatacommunities.org/id/metropolitan-district-council/wolverhampton","DV247 LIMITED","88.02","Music Support Team","5733","Equipment - Purchase","10/07/2017"
"Wolverhampton City Council","http://opendatacommunities.org/id/metropolitan-district-council/wolverhampton","HOMEBASE LTD 103","139.46","Customer Services","5211","Materials","10/07/2017"
"Wolverhampton City Council","http://opendatacommunities.org/id/metropolitan-district-council/wolverhampton","SCREWFIX WOLVERHAM","35.26","Public Conveniences","5211","Materials","10/07/2017"
"Wolverhampton City Council","http://opendatacommunities.org/id/metropolitan-district-council/wolverhampton","AO RETAIL LIMITED","223.99","LAC Transitions Team","5722","Client Allowances","10/07/2017"
"Wolverhampton City Council","http://opendatacommunities.org/id/metropolitan-district-council/wolverhampton","Amazon UK Marketplace","32.30","Global Budgets","5942","Books","10/07/2017"
"Wolverhampton City Council","http://opendatacommunities.org/id/metropolitan-district-council/wolverhampton","Virgin Trains","64.00","LAC Team","4112","Client Transport","10/07/2017"
"Wolverhampton City Council","http://opendatacommunities.org/id/metropolitan-district-council/wolverhampton","THE STATION HOTEL","95.00","LAC Team","7011","Services - Supplies & Services to users","10/07/2017"
"Wolverhampton City Council","http://opendatacommunities.org/id/metropolitan-district-council/wolverhampton","ASDA HOME SHOPPING","97.24","Ernest Bold Court","5411","Provisions (Not for resale)","10/07/2017"
"Wolverhampton City Council","http://opendatacommunities.org/id/metropolitan-district-council/wolverhampton","WM MORRISONS","12.01","Head of Service - CINCP","5411","Provisions (Not for resale)","10/07/2017"
"Wolverhampton City Council","http://opendatacommunities.org/id/metropolitan-district-council/wolverhampton","Trainline","61.10","Service Director Older People","4112","Public Transport","10/07/2017"
"Wolverhampton City Council","http://opendatacommunities.org/id/metropolitan-district-council/wolverhampton","LYNDON HOUSE HOTEL","49.50","Global Budgets","7011","Hospitality","10/07/2017"
"Wolverhampton City Council","http://opendatacommunities.org/id/metropolitan-district-council/wolverhampton","M-R-S COMMUNICATIONS L","130.00","Civic Halls Non Direct Management A/C","5046","Equipment - Hire","10/07/2017"
"Wolverhampton City Council","http://opendatacommunities.org/id/metropolitan-district-council/wolverhampton","AMAZON.CO.UK","17.34","Fostering Team & Allowances","5999","Equipment - Purchase","10/07/2017"
"Wolverhampton City Council","http://opendatacommunities.org/id/metropolitan-district-council/wolverhampton","Virgin Trains","214.00","Fostering Team & Allowances","4112","Public Transport","10/07/2017"
"Wolverhampton City Council","http://opendatacommunities.org/id/metropolitan-district-council/wolverhampton","REGISTRARS OFFICE","25.00","Legal Services","8299","Services - Professional Fees","10/07/2017"
"Wolverhampton City Council","http://opendatacommunities.org/id/metropolitan-district-council/wolverhampton","CROWNE PLAZA BIRMINGHA","28.15","Managing Director","7011","Subsistence","10/07/2017"
"Wolverhampton City Council","http://opendatacommunities.org/id/metropolitan-district-council/wolverhampton","WWW.SPORTANDLEISUR","249.98","Upper Pendeford Farm Childrens Home","5941","Equipment - Purchase","10/07/2017"
"Wolverhampton City Council","http://opendatacommunities.org/id/metropolitan-district-council/wolverhampton","AMZ FirstAid4Less","19.62","Upper Pendeford Farm Childrens Home","4816","Computing - Purchase of Software","10/07/2017"
"Wolverhampton City Council","http://opendatacommunities.org/id/metropolitan-district-council/wolverhampton","Amazon UK Marketplace","16.02","LAC Transitions Team","5942","Client Allowances","10/07/2017"
"Wolverhampton City Council","http://opendatacommunities.org/id/metropolitan-district-council/wolverhampton","Amazon UK Marketplace","35.81","Telecare","5942","Equipment - Purchase","10/07/2017"
"Wolverhampton City Council","http://opendatacommunities.org/id/metropolitan-district-council/wolverhampton","Amazon UK Marketplace","3.12","Telecare","5942","Equipment - Purchase","10/07/2017"
"Wolverhampton City Council","http://opendatacommunities.org/id/metropolitan-district-council/wolverhampton","PASS  PORTABLE APPLIAN","185.20","Private Sector Housing","8734","Equipment - Purchase","10/07/2017"
"Wolverhampton City Council","http://opendatacommunities.org/id/metropolitan-district-council/wolverhampton","PREMIER INN","484.17","Homeless Families","3811","Accommodation Costs","10/07/2017"
"Wolverhampton City Council","http://opendatacommunities.org/id/metropolitan-district-council/wolverhampton","Virgin Trains","92.40","Private Sector Housing","4112","Public Transport","10/07/2017"
"Wolverhampton City Council","http://opendatacommunities.org/id/metropolitan-district-council/wolverhampton","Virgin Trains","122.50","Private Sector Housing","4112","Public Transport","10/07/2017"
"Wolverhampton City Council","http://opendatacommunities.org/id/metropolitan-district-council/wolverhampton","Amazon UK Marketplace","12.91","Vulnerable Young Persons Team","5942","Books","10/07/2017"
"Wolverhampton City Council","http://opendatacommunities.org/id/metropolitan-district-council/wolverhampton","POST OFFICE COUNTER","65.00","Vulnerable Young Persons Team","9402","Comms - Postage","10/07/2017"
"Wolverhampton City Council","http://opendatacommunities.org/id/metropolitan-district-council/wolverhampton","Amazon UK Marketplace","5.88","Vulnerable Young Persons Team","5942","Books","10/07/2017"
"Wolverhampton City Council","http://opendatacommunities.org/id/metropolitan-district-council/wolverhampton","Amazon UK Marketplace","47.51","Towers Outdoor Education Centre","5942","Equipment - Purchase","10/07/2017"
"Wolverhampton City Council","http://opendatacommunities.org/id/metropolitan-district-council/wolverhampton","SPAR SIOP TANDDERWEN","380.27","Towers Outdoor Education Centre","5411","Provisions (Not for resale)","10/07/2017"
"Wolverhampton City Council","http://opendatacommunities.org/id/metropolitan-district-council/wolverhampton","SPAR SIOP TANDDERWEN","400.00","Towers Outdoor Education Centre","5411","Provisions (Not for resale)","10/07/2017"
"Wolverhampton City Council","http://opendatacommunities.org/id/metropolitan-district-council/wolverhampton","WIX.COM","93.13","Technical Support","5817","Computing - Purchase of Software","10/07/2017"
"Wolverhampton City Council","http://opendatacommunities.org/id/metropolitan-district-council/wolverhampton","GRANDTHEATRE.CO.UK","818.00","Learning Technologies","7922","Educ Trips, Holidays, Outings, Activity","10/07/2017"
"Wolverhampton City Council","http://opendatacommunities.org/id/metropolitan-district-council/wolverhampton","WIX.COM","93.13","Technical Support","5817","Computing - Purchase of Software","10/07/2017"
"Wolverhampton City Council","http://opendatacommunities.org/id/metropolitan-district-council/wolverhampton","Amazon UK Marketplace","36.62","Global Budgets","5942","Books","10/07/2017"
"Wolverhampton City Council","http://opendatacommunities.org/id/metropolitan-district-council/wolverhampton","Virgin Trains","118.60","Fostering Team & Allowances","4112","Public Transport","10/07/2017"
"Wolverhampton City Council","http://opendatacommunities.org/id/metropolitan-district-council/wolverhampton","REGISTRARS OFFICE","20.00","CIN/CP Social Work Unit - Area 1","8299","Printing","10/07/2017"
"Wolverhampton City Council","http://opendatacommunities.org/id/metropolitan-district-council/wolverhampton","Amazon UK Marketplace","22.00","Global Budgets","5942","Books","10/07/2017"
"Wolverhampton City Council","http://opendatacommunities.org/id/metropolitan-district-council/wolverhampton","TPER-SERVIZIO AEROBUS","21.89","GEN Y City Transnational","4789","Public Transport","10/07/2017"
"Wolverhampton City Council","http://opendatacommunities.org/id/metropolitan-district-council/wolverhampton","SHOWLITE LTD","-239.93","Corporate Budgets","5399","Equipment - Purchase","10/07/2017"
"Wolverhampton City Council","http://opendatacommunities.org/id/metropolitan-district-council/wolverhampton","REGISTRARS OFFICE","11.00","Childrens with Disabilities Team","8299","Section 17","10/07/2017"
"Wolverhampton City Council","http://opendatacommunities.org/id/metropolitan-district-council/wolverhampton","TD E-PMT 2MAA003455949","72.00","LAC Transitions Team","9399","Client Allowances","10/07/2017"
"Wolverhampton City Council","http://opendatacommunities.org/id/metropolitan-district-council/wolverhampton","ASDA SUPERSTORE","7.00","Youth Offending Team","5411","Provisions (Not for resale)","10/07/2017"
"Wolverhampton City Council","http://opendatacommunities.org/id/metropolitan-district-council/wolverhampton","UNTOUCHABLES","15.21","Cemeteries","5231","Materials","10/07/2017"
"Wolverhampton City Council","http://opendatacommunities.org/id/metropolitan-district-council/wolverhampton","Amazon UK Marketplace","33.60","Adoption and Residence Team & Allowances","5942","Books","10/07/2017"
"Wolverhampton City Council","http://opendatacommunities.org/id/metropolitan-district-council/wolverhampton","AMAZON.CO.UK","7.22","Adoption and Residence Team & Allowances","5999","Books","10/07/2017"
"Wolverhampton City Council","http://opendatacommunities.org/id/metropolitan-district-council/wolverhampton","HALFORDS 0775","14.17","Mayoral Expenses","5940","Materials","07/07/2017"
"Wolverhampton City Council","http://opendatacommunities.org/id/metropolitan-district-council/wolverhampton","CUMMINGS BROTHERS LOCK","20.00","Mayoral Expenses","7399","Equipment - Purchase","07/07/2017"
"Wolverhampton City Council","http://opendatacommunities.org/id/metropolitan-district-council/wolverhampton","WORTH READING LTD","11.24","LAC Education Team (LACE)","5942","Books","07/07/2017"
"Wolverhampton City Council","http://opendatacommunities.org/id/metropolitan-district-council/wolverhampton","RNCB","300.00","LAC Transitions Team","8220","Accommodation Costs","07/07/2017"
"Wolverhampton City Council","http://opendatacommunities.org/id/metropolitan-district-council/wolverhampton","POST OFFICE COUNTER","8.55","Adoption and Residence Team & Allowances","9402","Comms - Postage","07/07/2017"
"Wolverhampton City Council","http://opendatacommunities.org/id/metropolitan-district-council/wolverhampton","Amazon UK Marketplace","27.50","Strategic ICTS (ICT Serv Budget)","5942","Computing - Purchase of Hardware","07/07/2017"
"Wolverhampton City Council","http://opendatacommunities.org/id/metropolitan-district-council/wolverhampton","AO RETAIL LIMITED","315.00","LAC Transitions Team","5722","Client Allowances","07/07/2017"
"Wolverhampton City Council","http://opendatacommunities.org/id/metropolitan-district-council/wolverhampton","TESCO DIRECT","124.17","LAC Transitions Team","5999","Client Allowances","07/07/2017"
"Wolverhampton City Council","http://opendatacommunities.org/id/metropolitan-district-council/wolverhampton","ARGOS RETAIL GROUP","204.03","LAC Transitions Team","5310","Client Allowances","07/07/2017"
"Wolverhampton City Council","http://opendatacommunities.org/id/metropolitan-district-council/wolverhampton","GRO HM PASSPORT OFFICE","9.25","LAC Transitions Team","9399","Client Allowances","07/07/2017"
"Wolverhampton City Council","http://opendatacommunities.org/id/metropolitan-district-council/wolverhampton","ROYAL CARPETS","125.00","LAC Transitions Team","5713","Client Allowances","07/07/2017"
"Wolverhampton City Council","http://opendatacommunities.org/id/metropolitan-district-council/wolverhampton","Amazon UK Marketplace","29.16","Private Sector Housing","5942","Equipment - Purchase","07/07/2017"
"Wolverhampton City Council","http://opendatacommunities.org/id/metropolitan-district-council/wolverhampton","HEATHROW AIRPORT","75.00","GEN Y City Transnational","7523","Car Allowances","07/07/2017"
"Wolverhampton City Council","http://opendatacommunities.org/id/metropolitan-district-council/wolverhampton","SCANNER EXPRESS LIMITE","220.74","Customer Services","5065","Equipment - R & M","07/07/2017"
"Wolverhampton City Council","http://opendatacommunities.org/id/metropolitan-district-council/wolverhampton","Cedartreeinsurance.com","10.75","GEN Y City Transnational","6300","Services - Supplies & Services to users","07/07/2017"
"Wolverhampton City Council","http://opendatacommunities.org/id/metropolitan-district-council/wolverhampton","WWW.TONERGIANT.CO.UK","34.72","Headstart Phase 3","5943","Equipment - Purchase","07/07/2017"
"Wolverhampton City Council","http://opendatacommunities.org/id/metropolitan-district-council/wolverhampton","Amazon UK Marketplace","10.62","Headstart - Young People Engagement","5942","Stationery","07/07/2017"
"Wolverhampton City Council","http://opendatacommunities.org/id/metropolitan-district-council/wolverhampton","WWW.WMCA.CO.UK","8.50","IMPACT","9399","Services - Fees and Charges","07/07/2017"
"Wolverhampton City Council","http://opendatacommunities.org/id/metropolitan-district-council/wolverhampton","HOMEBASE LTD 103","121.89","Customer Services","5211","Materials","07/07/2017"
"Wolverhampton City Council","http://opendatacommunities.org/id/metropolitan-district-council/wolverhampton","SANGHA SUPERMARKETS","8.58","Adult Services - East","5499","Catering","07/07/2017"
"Wolverhampton City Council","http://opendatacommunities.org/id/metropolitan-district-council/wolverhampton","Amazon UK Marketplace","4.74","Private Sector Housing","5942","Equipment - Purchase","07/07/2017"
"Wolverhampton City Council","http://opendatacommunities.org/id/metropolitan-district-council/wolverhampton","CO OP FOOD","54.50","EIP Locality 1","5411","Financial Assistance In Exceptional Circ","07/07/2017"
"Wolverhampton City Council","http://opendatacommunities.org/id/metropolitan-district-council/wolverhampton","WWW.STAPLES.CO.UK","251.68","Towers Outdoor Education Centre","5943","Equipment - Purchase","07/07/2017"
"Wolverhampton City Council","http://opendatacommunities.org/id/metropolitan-district-council/wolverhampton","SCREWFIX DIRECT LT","33.62","Car Parks Operational Staff","5211","Equipment - R & M","07/07/2017"
"Wolverhampton City Council","http://opendatacommunities.org/id/metropolitan-district-council/wolverhampton","LOYD 37 CHURCH STREET","100.00","Duke Street Bungalows","6011","Public Transport","07/07/2017"
"Wolverhampton City Council","http://opendatacommunities.org/id/metropolitan-district-council/wolverhampton","LOYD 37 CHURCH STREET","100.00","Duke Street Bungalows","6011","Room Hire","07/07/2017"
"Wolverhampton City Council","http://opendatacommunities.org/id/metropolitan-district-council/wolverhampton","LOYD 37 CHURCH STREET","100.00","Duke Street Bungalows","6011","Room Hire","07/07/2017"
"Wolverhampton City Council","http://opendatacommunities.org/id/metropolitan-district-council/wolverhampton","ARGOS LTD","22.00","Fostering Team & Allowances","5310","Equipment - Purchase","07/07/2017"
"Wolverhampton City Council","http://opendatacommunities.org/id/metropolitan-district-council/wolverhampton","ARGOS RETAIL GROUP","34.97","EIP Locality 3","5310","Financial Assistance In Exceptional Circ","07/07/2017"
"Wolverhampton City Council","http://opendatacommunities.org/id/metropolitan-district-council/wolverhampton","WWW.ARGOS.CO.UK","49.12","EIP Locality 3","5310","Financial Assistance In Exceptional Circ","07/07/2017"
"Wolverhampton City Council","http://opendatacommunities.org/id/metropolitan-district-council/wolverhampton","TFM FARM & COUNTRY SUP","208.80","Northicote Farm","5399","Equipment - Purchase","07/07/2017"
"Wolverhampton City Council","http://opendatacommunities.org/id/metropolitan-district-council/wolverhampton","SUITES AND BEDS","166.67","CIN/CP Social Work Unit - Area 7","5712","Section 17","07/07/2017"
"Wolverhampton City Council","http://opendatacommunities.org/id/metropolitan-district-council/wolverhampton","WWW.ARGOS.CO.UK","94.99","CIN/CP Social Work Unit - Area 6","5310","Section 17","07/07/2017"
"Wolverhampton City Council","http://opendatacommunities.org/id/metropolitan-district-council/wolverhampton","GO CARZ","-18.15","Admin & Support","4121","Client Transport","06/07/2017"
"Wolverhampton City Council","http://opendatacommunities.org/id/metropolitan-district-council/wolverhampton","GO CARZ","-16.47","Admin & Support","4121","Client Transport","06/07/2017"
"Wolverhampton City Council","http://opendatacommunities.org/id/metropolitan-district-council/wolverhampton","WM MORRISONS","3.65","Early Years & Universal Service","5411","Provisions (Not for resale)","06/07/2017"
"Wolverhampton City Council","http://opendatacommunities.org/id/metropolitan-district-council/wolverhampton","ALDI","32.56","Early Years & Universal Service","5411","Provisions (Not for resale)","06/07/2017"
"Wolverhampton City Council","http://opendatacommunities.org/id/metropolitan-district-council/wolverhampton","AMAZON UK RETAIL AMAZO","7.19","Strategic ICTS (ICT Serv Budget)","5999","Equipment - Purchase","06/07/2017"
"Wolverhampton City Council","http://opendatacommunities.org/id/metropolitan-district-council/wolverhampton","NYCOMM LTD","1014.66","Strategic ICTS (ICT Serv Budget)","4812","Comms - Mobile Telephones","06/07/2017"
"Wolverhampton City Council","http://opendatacommunities.org/id/metropolitan-district-council/wolverhampton","CEX","228.00","LAC Transitions Team","5065","Equipment - R & M","06/07/2017"
"Wolverhampton City Council","http://opendatacommunities.org/id/metropolitan-district-council/wolverhampton","H I FURNITURE FACTORY","99.00","LAC Transitions Team","5712","Equipment - Purchase","06/07/2017"
"Wolverhampton City Council","http://opendatacommunities.org/id/metropolitan-district-council/wolverhampton","Trainline","41.82","LAC Transitions Team","4112","Public Transport","06/07/2017"
"Wolverhampton City Council","http://opendatacommunities.org/id/metropolitan-district-council/wolverhampton","Amazon EU","11.98","Archives","5969","Equipment - Purchase","06/07/2017"
"Wolverhampton City Council","http://opendatacommunities.org/id/metropolitan-district-council/wolverhampton","THE RED HOUSE","14.99","IMPACT","5611","Clothing / Uniforms","06/07/2017"
"Wolverhampton City Council","http://opendatacommunities.org/id/metropolitan-district-council/wolverhampton","POST OFFICE COUNTER","6.45","Duke Street Bungalows","9402","Comms - Postage","06/07/2017"
"Wolverhampton City Council","http://opendatacommunities.org/id/metropolitan-district-council/wolverhampton","POST OFFICE COUNTER","200.00","Headstart - Young People Engagement","9402","Provisions (Not for resale)","06/07/2017"
"Wolverhampton City Council","http://opendatacommunities.org/id/metropolitan-district-council/wolverhampton","LONDON BRGH SOUTHWARK","35.00","Register Office","9399","Services - Fees and Charges","06/07/2017"
"Wolverhampton City Council","http://opendatacommunities.org/id/metropolitan-district-council/wolverhampton","WWW.STAPLES.CO.UK","37.90","Macmillan Welfare Rights","5943","Stationery","06/07/2017"
"Wolverhampton City Council","http://opendatacommunities.org/id/metropolitan-district-council/wolverhampton","WWW.STAPLES.CO.UK","35.38","Macmillan Welfare Rights","5943","Stationery","06/07/2017"
"Wolverhampton City Council","http://opendatacommunities.org/id/metropolitan-district-council/wolverhampton","GO CARZ","-18.15","Admin & Support","4121","Client Transport","06/07/2017"
"Wolverhampton City Council","http://opendatacommunities.org/id/metropolitan-district-council/wolverhampton","E01510300000000","200.00","MASH","6011","Financial Assistance In Exceptional Circ","06/07/2017"
"Wolverhampton City Council","http://opendatacommunities.org/id/metropolitan-district-council/wolverhampton","Wolverhampton Fair Tra","164.00","Mayoral Expenses","5411","Hospitality","06/07/2017"
"Wolverhampton City Council","http://opendatacommunities.org/id/metropolitan-district-council/wolverhampton","Wolverhampton Fair Tra","200.00","Mayoral Expenses","5411","Hospitality","06/07/2017"
"Wolverhampton City Council","http://opendatacommunities.org/id/metropolitan-district-council/wolverhampton","LIDL UK","6.33","LAC Transitions Team","5411","Client Allowances","06/07/2017"
"Wolverhampton City Council","http://opendatacommunities.org/id/metropolitan-district-council/wolverhampton","NCE COMPUTER GROUP","243.00","Customer Services","7372","Computing - Purchase of Software","06/07/2017"
"Wolverhampton City Council","http://opendatacommunities.org/id/metropolitan-district-council/wolverhampton","PREMIER INN","-65.00","Tenancy Sustainment","3811","Services - Supplies & Services to users","06/07/2017"
"Wolverhampton City Council","http://opendatacommunities.org/id/metropolitan-district-council/wolverhampton","OLIVER LIGHTING","107.82","Towers Outdoor Education Centre","5719","Equipment - Purchase","06/07/2017"
"Wolverhampton City Council","http://opendatacommunities.org/id/metropolitan-district-council/wolverhampton","PETER LUCAS TOOLS","102.50","Towers Outdoor Education Centre","7394","Fixtures and Fittings - Purchases","06/07/2017"
"Wolverhampton City Council","http://opendatacommunities.org/id/metropolitan-district-council/wolverhampton","Virgin Trains","25.70","Children & Young People Support Costs","4112","Public Transport","06/07/2017"
"Wolverhampton City Council","http://opendatacommunities.org/id/metropolitan-district-council/wolverhampton","SCREWFIX DIRECT LT","35.98","Blakenhall Commty & Healthy Living Ctr","5211","Materials","06/07/2017"
"Wolverhampton City Council","http://opendatacommunities.org/id/metropolitan-district-council/wolverhampton","AMAZON.CO.UK","15.28","Technical Support","5999","Equipment - Purchase","06/07/2017"
"Wolverhampton City Council","http://opendatacommunities.org/id/metropolitan-district-council/wolverhampton","SURVEYMONKEY","249.17","Technical Support","5968","Subscriptions","06/07/2017"
"Wolverhampton City Council","http://opendatacommunities.org/id/metropolitan-district-council/wolverhampton","BRITANNIA","182.92","The Little Civic","7011","Accommodation Costs","06/07/2017"
"Wolverhampton City Council","http://opendatacommunities.org/id/metropolitan-district-council/wolverhampton","WM MORRISONS","5.00","CIN/CP Social Work Unit - Area 5","5411","Provisions (Not for resale)","06/07/2017"
"Wolverhampton City Council","http://opendatacommunities.org/id/metropolitan-district-council/wolverhampton","REGISTRARS OFFICE","61.00","CIN/CP Social Work Unit - Area 1","8299","Section 17","06/07/2017"
"Wolverhampton City Council","http://opendatacommunities.org/id/metropolitan-district-council/wolverhampton","Trainline","118.32","CIN/CP Social Work Unit - Area 7","4112","Section 17","06/07/2017"
"Wolverhampton City Council","http://opendatacommunities.org/id/metropolitan-district-council/wolverhampton","POST OFFICE COUNTER","56.00","Macmillan Welfare Rights","9402","Comms - Postage","05/07/2017"
"Wolverhampton City Council","http://opendatacommunities.org/id/metropolitan-district-council/wolverhampton","MARKS&SPENCER PLC SACA","12.86","Admin & Support","5411","Provisions (Not for resale)","05/07/2017"
"Wolverhampton City Council","http://opendatacommunities.org/id/metropolitan-district-council/wolverhampton","WILKO RETAIL LIMIT","2.50","City Direct","5722","Equipment - Purchase","05/07/2017"
"Wolverhampton City Council","http://opendatacommunities.org/id/metropolitan-district-council/wolverhampton","ARGOS LTD","284.98","LAC Transitions Team","5310","Client Allowances","05/07/2017"
"Wolverhampton City Council","http://opendatacommunities.org/id/metropolitan-district-council/wolverhampton","MAPLIN WOLVERHAMPT WV2","11.99","Strategic ICTS (ICT Serv Budget)","4812","Computing - Purchase of Hardware","05/07/2017"
"Wolverhampton City Council","http://opendatacommunities.org/id/metropolitan-district-council/wolverhampton","Amazon EU","24.66","Strategic ICTS (ICT Serv Budget)","5969","Equipment - Purchase","05/07/2017"
"Wolverhampton City Council","http://opendatacommunities.org/id/metropolitan-district-council/wolverhampton","Virgin Trains","47.40","Members Expenses","4112","Public Transport","05/07/2017"
"Wolverhampton City Council","http://opendatacommunities.org/id/metropolitan-district-council/wolverhampton","SPORTSDIRECT.COM","-4.99","Upper Pendeford Farm Childrens Home","5941","Equipment - Purchase","05/07/2017"
"Wolverhampton City Council","http://opendatacommunities.org/id/metropolitan-district-council/wolverhampton","Virgin Trains","66.30","Private Sector Housing","4112","Public Transport","05/07/2017"
"Wolverhampton City Council","http://opendatacommunities.org/id/metropolitan-district-council/wolverhampton","GES LIMITED","2097.15","Corporate Budgets","7399","Equipment - Purchase","05/07/2017"
"Wolverhampton City Council","http://opendatacommunities.org/id/metropolitan-district-council/wolverhampton","PRZCHARGE.PREZI.COM","759.20","Communications & Marketing - General","5045","Computing - Purchase of Hardware","05/07/2017"
"Wolverhampton City Council","http://opendatacommunities.org/id/metropolitan-district-council/wolverhampton","WWW.TONERGIANT.CO.UK","113.51","Headstart Phase 3","5943","Equipment - Purchase","05/07/2017"
"Wolverhampton City Council","http://opendatacommunities.org/id/metropolitan-district-council/wolverhampton","ARGOS RETAIL GROUP","88.32","Headstart - Young People Engagement","5310","Equipment - Purchase","05/07/2017"
"Wolverhampton City Council","http://opendatacommunities.org/id/metropolitan-district-council/wolverhampton","HSBC CASH MACHINE","30.00","Headstart - Young People Engagement","6011","Financial Assistance In Exceptional Circ","05/07/2017"
"Wolverhampton City Council","http://opendatacommunities.org/id/metropolitan-district-council/wolverhampton","SCREWFIX DIRECT","47.90","IMPACT","5211","Materials","05/07/2017"
"Wolverhampton City Council","http://opendatacommunities.org/id/metropolitan-district-council/wolverhampton","SCREWFIX DIRECT","381.27","IMPACT","5211","Materials","05/07/2017"
"Wolverhampton City Council","http://opendatacommunities.org/id/metropolitan-district-council/wolverhampton","SCREWFIX DIRECT","408.32","IMPACT","5211","Materials","05/07/2017"
"Wolverhampton City Council","http://opendatacommunities.org/id/metropolitan-district-council/wolverhampton","ASDA HOME SHOPPING","1.71","Upper Pendeford Farm Childrens Home","5411","Provisions (Not for resale)","05/07/2017"
"Wolverhampton City Council","http://opendatacommunities.org/id/metropolitan-district-council/wolverhampton","ASDA HOME SHOPPING","173.79","Upper Pendeford Farm Childrens Home","5411","Provisions (Not for resale)","05/07/2017"
"Wolverhampton City Council","http://opendatacommunities.org/id/metropolitan-district-council/wolverhampton","WOLVERHAMPTON CC","3.33","Headstart Phase 3","7523","Parking Fees","05/07/2017"
"Wolverhampton City Council","http://opendatacommunities.org/id/metropolitan-district-council/wolverhampton","Trainline","198.39","CIN/CP Social Work Unit - Area 2","4112","Public Transport","05/07/2017"
"Wolverhampton City Council","http://opendatacommunities.org/id/metropolitan-district-council/wolverhampton","Trainline","163.51","CIN/CP Social Work Unit - Area 2","4112","Public Transport","05/07/2017"
"Wolverhampton City Council","http://opendatacommunities.org/id/metropolitan-district-council/wolverhampton","DIRECT CARPETS","375.00","EIP Locality 1","5713","Financial Assistance In Exceptional Circ","05/07/2017"
"Wolverhampton City Council","http://opendatacommunities.org/id/metropolitan-district-council/wolverhampton","PO WILLENHALL RD 5497","30.00","EIP Locality 1","6011","Financial Assistance In Exceptional Circ","05/07/2017"
"Wolverhampton City Council","http://opendatacommunities.org/id/metropolitan-district-council/wolverhampton","BOOKWHEN","9.00","Craftplay","7372","Computing - Purchase of Software","05/07/2017"
"Wolverhampton City Council","http://opendatacommunities.org/id/metropolitan-district-council/wolverhampton","TESCO STORES 5194","26.50","Towers Outdoor Education Centre","5411","Provisions (Not for resale)","05/07/2017"
"Wolverhampton City Council","http://opendatacommunities.org/id/metropolitan-district-council/wolverhampton","Wix.com","-12.70","Technical Support","5817","Computing - Purchase of Software","05/07/2017"
"Wolverhampton City Council","http://opendatacommunities.org/id/metropolitan-district-council/wolverhampton","Amazon UK Marketplace","15.28","Technical Support","5942","Books","05/07/2017"
"Wolverhampton City Council","http://opendatacommunities.org/id/metropolitan-district-council/wolverhampton","Amazon UK Marketplace","41.89","Technical Support","5942","Books","05/07/2017"
"Wolverhampton City Council","http://opendatacommunities.org/id/metropolitan-district-council/wolverhampton","WOLVERHAMPTON ART","5.17","Education And Access","8299","Catering","05/07/2017"
"Wolverhampton City Council","http://opendatacommunities.org/id/metropolitan-district-council/wolverhampton","ALBRIGHTON GARDEN","21.45","Play General","5261","Equipment - Purchase","05/07/2017"
"Wolverhampton City Council","http://opendatacommunities.org/id/metropolitan-district-council/wolverhampton","AMAZON UK RETAIL AMAZO","296.00","Education Business Partnership","5999","Equipment - Purchase","05/07/2017"
"Wolverhampton City Council","http://opendatacommunities.org/id/metropolitan-district-council/wolverhampton","UNTOUCHABLES","10.83","Education Catering - General Overheads","5231","Materials","05/07/2017"
"Wolverhampton City Council","http://opendatacommunities.org/id/metropolitan-district-council/wolverhampton","SCREWFIX DIRECT","405.82","IMPACT","5211","Materials","05/07/2017"
"Wolverhampton City Council","http://opendatacommunities.org/id/metropolitan-district-council/wolverhampton","B & Q 1243","23.33","Education Catering - General Overheads","5211","Materials","05/07/2017"
"Wolverhampton City Council","http://opendatacommunities.org/id/metropolitan-district-council/wolverhampton","TELESLOT TV LTD","8.32","Education Catering - General Overheads","5722","Catering","05/07/2017"
"Wolverhampton City Council","http://opendatacommunities.org/id/metropolitan-district-council/wolverhampton","TOOLSTATION LTD","9.93","Education Catering - General Overheads","5251","Equipment - R & M","05/07/2017"
"Wolverhampton City Council","http://opendatacommunities.org/id/metropolitan-district-council/wolverhampton","SALFORD PROFESSIONAL D","225.00","Workforce Development","8299","Training Expenses","05/07/2017"
"Wolverhampton City Council","http://opendatacommunities.org/id/metropolitan-district-council/wolverhampton","WM MORRISON 024","19.55","Fostering Team & Allowances","5411","Provisions (Not for resale)","05/07/2017"
"Wolverhampton City Council","http://opendatacommunities.org/id/metropolitan-district-council/wolverhampton","WILKO RETAIL LIMIT","15.00","Revenues","5722","Equipment - Purchase","05/07/2017"
"Wolverhampton City Council","http://opendatacommunities.org/id/metropolitan-district-council/wolverhampton","Trainline","114.24","CIN/CP Social Work Unit - Area 8","4112","Public Transport","05/07/2017"
"Wolverhampton City Council","http://opendatacommunities.org/id/metropolitan-district-council/wolverhampton","Trainline","34.02","CIN/CP Social Work Unit - Area 7","4112","Public Transport","05/07/2017"
"Wolverhampton City Council","http://opendatacommunities.org/id/metropolitan-district-council/wolverhampton","SAINSBURYS (2340)","12.48","Mayoral Expenses","5411","Hospitality","05/07/2017"
"Wolverhampton City Council","http://opendatacommunities.org/id/metropolitan-district-council/wolverhampton","PREMIER INN","462.40","Adoption and Residence Team & Allowances","3811","Accommodation Costs","05/07/2017"
"Wolverhampton City Council","http://opendatacommunities.org/id/metropolitan-district-council/wolverhampton","000002200500000","250.00","CIN/CP Social Work Unit - Area 6","6011","Financial Assistance In Exceptional Circ","05/07/2017"
"Wolverhampton City Council","http://opendatacommunities.org/id/metropolitan-district-council/wolverhampton","Trainline","95.17","CIN/CP Social Work Unit - Area 6","4112","Public Transport","05/07/2017"
"Wolverhampton City Council","http://opendatacommunities.org/id/metropolitan-district-council/wolverhampton","HIGHFIELD HOUSE HO","385.00","CIN/CP Social Work Unit - Area 3","7011","Accommodation Costs","05/07/2017"
"Wolverhampton City Council","http://opendatacommunities.org/id/metropolitan-district-council/wolverhampton","TRAVELODGE","44.37","Adoption and Residence Team & Allowances","3615","Accommodation Costs","04/07/2017"
"Wolverhampton City Council","http://opendatacommunities.org/id/metropolitan-district-council/wolverhampton","Virgin Trains","146.00","Members Expenses","4112","Public Transport","04/07/2017"
"Wolverhampton City Council","http://opendatacommunities.org/id/metropolitan-district-council/wolverhampton","ROYAL BK OF SCOTLAND","200.00","Headstart Phase 3","6011","Financial Assistance In Exceptional Circ","04/07/2017"
"Wolverhampton City Council","http://opendatacommunities.org/id/metropolitan-district-council/wolverhampton","Trainline","81.09","Youth Offending Team","4112","Public Transport","04/07/2017"
"Wolverhampton City Council","http://opendatacommunities.org/id/metropolitan-district-council/wolverhampton","WWW.DIRECTHYGIENE.COM","46.49","Central Baths","7399","Equipment - Purchase","04/07/2017"
"Wolverhampton City Council","http://opendatacommunities.org/id/metropolitan-district-council/wolverhampton","W M MORRISONS.COM","99.34","Discretionary Fund","5411","Materials","04/07/2017"
"Wolverhampton City Council","http://opendatacommunities.org/id/metropolitan-district-council/wolverhampton","Virgin Trains","52.70","Strategic Asset Management - General","4112","Public Transport","04/07/2017"
"Wolverhampton City Council","http://opendatacommunities.org/id/metropolitan-district-council/wolverhampton","WWW.WMCA.CO.UK","86.80","IMPACT","9399","Client Transport","04/07/2017"
"Wolverhampton City Council","http://opendatacommunities.org/id/metropolitan-district-council/wolverhampton","HOME BARGAINS WOLVERHA","2.63","Telecare","5251","Equipment - Purchase","04/07/2017"
"Wolverhampton City Council","http://opendatacommunities.org/id/metropolitan-district-council/wolverhampton","THE QUEEN VICTORIA HOT","32.50","CIN/CP Social Work Unit - Area 5","7011","Accommodation Costs","04/07/2017"
"Wolverhampton City Council","http://opendatacommunities.org/id/metropolitan-district-council/wolverhampton","WOLVERHAMPTON TROPHY C","43.75","Education Business Partnership","5999","Equipment - Purchase","04/07/2017"
"Wolverhampton City Council","http://opendatacommunities.org/id/metropolitan-district-council/wolverhampton","TV LICENSING","147.00","Community Enablement","7392","Services - General Licences","04/07/2017"
"Wolverhampton City Council","http://opendatacommunities.org/id/metropolitan-district-council/wolverhampton","INSIGHT SECURITY","28.50","Civic Halls Non Direct Management A/C","5065","Equipment - R & M","04/07/2017"
"Wolverhampton City Council","http://opendatacommunities.org/id/metropolitan-district-council/wolverhampton","AMFBOWLING.CO.UK","15.37","CIN/CP Social Work Unit - Area 3","7997","Section 17","04/07/2017"
"Wolverhampton City Council","http://opendatacommunities.org/id/metropolitan-district-council/wolverhampton","THE POST OFFICE","4.80","CIN/CP Social Work Unit - Area 4","9402","Comms - Postage","04/07/2017"
"Wolverhampton City Council","http://opendatacommunities.org/id/metropolitan-district-council/wolverhampton","WWW.RAINBOWSAFETEY.CO.","16.80","Ernest Bold Court","5999","Equipment - Purchase","04/07/2017"
"Wolverhampton City Council","http://opendatacommunities.org/id/metropolitan-district-council/wolverhampton","G & M HALE (SUNDRIES)","20.00","Discretionary Fund","5992","Materials","04/07/2017"
"Wolverhampton City Council","http://opendatacommunities.org/id/metropolitan-district-council/wolverhampton","G & M HALE LTD","48.80","Discretionary Fund","5992","Materials for resale","04/07/2017"
"Wolverhampton City Council","http://opendatacommunities.org/id/metropolitan-district-council/wolverhampton","Amazon UK Marketplace","13.75","Global Budgets","5942","Stationery","04/07/2017"
"Wolverhampton City Council","http://opendatacommunities.org/id/metropolitan-district-council/wolverhampton","ASDA HOME SHOPPING","91.81","Ernest Bold Court","5411","Provisions (Not for resale)","04/07/2017"
"Wolverhampton City Council","http://opendatacommunities.org/id/metropolitan-district-council/wolverhampton","NATWEST BANK","200.00","Democratic Support","6011","Public Transport","04/07/2017"
"Wolverhampton City Council","http://opendatacommunities.org/id/metropolitan-district-council/wolverhampton","WOLVERHAMPTON","22.00","Strategic Director Place","5811","Hospitality","03/07/2017"
"Wolverhampton City Council","http://opendatacommunities.org/id/metropolitan-district-council/wolverhampton","Amazon EU","616.65","Strategic ICTS (ICT Serv Budget)","5969","Equipment - Purchase","03/07/2017"
"Wolverhampton City Council","http://opendatacommunities.org/id/metropolitan-district-council/wolverhampton","Amazon EU","16.66","Strategic ICTS (ICT Serv Budget)","5969","Equipment - Purchase","03/07/2017"
"Wolverhampton City Council","http://opendatacommunities.org/id/metropolitan-district-council/wolverhampton","Amazon EU","16.66","Strategic ICTS (ICT Serv Budget)","5969","Equipment - Purchase","03/07/2017"
"Wolverhampton City Council","http://opendatacommunities.org/id/metropolitan-district-council/wolverhampton","Amazon UK Marketplace","31.97","Strategic ICTS (ICT Serv Budget)","5942","Computing - Purchase of Hardware","03/07/2017"
"Wolverhampton City Council","http://opendatacommunities.org/id/metropolitan-district-council/wolverhampton","Amazon Prime","7.99","Strategic ICTS (ICT Serv Budget)","5968","Subscriptions","03/07/2017"
"Wolverhampton City Council","http://opendatacommunities.org/id/metropolitan-district-council/wolverhampton","CUMMINGS BROTHERS LOCK","24.58","Public Conveniences","7399","Equipment - Purchase","03/07/2017"
"Wolverhampton City Council","http://opendatacommunities.org/id/metropolitan-district-council/wolverhampton","CROWNE PLAZA BIRMINGHA","413.12","Delivery & OCE Development","7011","Accommodation Costs","03/07/2017"
"Wolverhampton City Council","http://opendatacommunities.org/id/metropolitan-district-council/wolverhampton","TRINITY MIRROR PUBLISH","-13.19","Communications & Marketing - General","7311","Marketing \ Non-staff advertising","03/07/2017"
"Wolverhampton City Council","http://opendatacommunities.org/id/metropolitan-district-council/wolverhampton","TRINITY MIRROR PUBLISH","-2.64","Communications & Marketing - General","7311","Marketing \ Non-staff advertising","03/07/2017"
"Wolverhampton City Council","http://opendatacommunities.org/id/metropolitan-district-council/wolverhampton","TRINITY MIRROR PUBLISH","799.18","Communications & Marketing - General","7311","Marketing \ Non-staff advertising","03/07/2017"
"Wolverhampton City Council","http://opendatacommunities.org/id/metropolitan-district-council/wolverhampton","FACEBK LD5X9D2AR2","383.73","Communications & Marketing - General","7311","Marketing \ Non-staff advertising","03/07/2017"
"Wolverhampton City Council","http://opendatacommunities.org/id/metropolitan-district-council/wolverhampton","GO CARZ","18.15","Admin & Support","4121","Client Transport","03/07/2017"
"Wolverhampton City Council","http://opendatacommunities.org/id/metropolitan-district-council/wolverhampton","GO CARZ","18.15","Admin & Support","4121","Client Transport","03/07/2017"
"Wolverhampton City Council","http://opendatacommunities.org/id/metropolitan-district-council/wolverhampton","GO CARZ","18.15","Admin & Support","4121","Client Transport","03/07/2017"
"Wolverhampton City Council","http://opendatacommunities.org/id/metropolitan-district-council/wolverhampton","GO CARZ","16.47","Admin & Support","4121","Client Transport","03/07/2017"
"Wolverhampton City Council","http://opendatacommunities.org/id/metropolitan-district-council/wolverhampton","GO CARZ","16.47","Admin & Support","4121","Client Transport","03/07/2017"
"Wolverhampton City Council","http://opendatacommunities.org/id/metropolitan-district-council/wolverhampton","GO CARZ","16.47","Admin & Support","4121","Client Transport","03/07/2017"
"Wolverhampton City Council","http://opendatacommunities.org/id/metropolitan-district-council/wolverhampton","TESCO STORES 5549","6.33","Admin & Support","5411","Catering","03/07/2017"
"Wolverhampton City Council","http://opendatacommunities.org/id/metropolitan-district-council/wolverhampton","AMAZON.CO.UK","23.98","Expenditure","5999","Equipment - Purchase","03/07/2017"
"Wolverhampton City Council","http://opendatacommunities.org/id/metropolitan-district-council/wolverhampton","Amazon UK Marketplace","71.32","Electoral Registration","5942","Books","03/07/2017"
"Wolverhampton City Council","http://opendatacommunities.org/id/metropolitan-district-council/wolverhampton","WOLVERHAMPTON RACECOUR","94.00","Strategic Director Place","7011","Catering","03/07/2017"
"Wolverhampton City Council","http://opendatacommunities.org/id/metropolitan-district-council/wolverhampton","YOUNG`S SHOE REPAIRS L","62.29","Wolverhampton Indoor and Open Market","7251","Fixtures and Fittings - R&M","03/07/2017"
"Wolverhampton City Council","http://opendatacommunities.org/id/metropolitan-district-council/wolverhampton","FACEBK  PFZBZCNHC2","19.55","Headstart Phase 3","7311","Marketing \ Non-staff advertising","03/07/2017"
"Wolverhampton City Council","http://opendatacommunities.org/id/metropolitan-district-council/wolverhampton","Amazon EU","177.60","Education Business Partnership","5969","Equipment - Purchase","03/07/2017"
"Wolverhampton City Council","http://opendatacommunities.org/id/metropolitan-district-council/wolverhampton","CTT (WOLVERHAMPTON) LI","149.35","Admin & Support","4722","Public Transport","03/07/2017"
"Wolverhampton City Council","http://opendatacommunities.org/id/metropolitan-district-council/wolverhampton","GO CARZ","12.06","Admin & Support","4121","Client Transport","03/07/2017"
"Wolverhampton City Council","http://opendatacommunities.org/id/metropolitan-district-council/wolverhampton","GO CARZ","18.15","Admin & Support","4121","Client Transport","03/07/2017"
"Wolverhampton City Council","http://opendatacommunities.org/id/metropolitan-district-council/wolverhampton","GO CARZ","29.79","Admin & Support","4121","Client Transport","03/07/2017"
"Wolverhampton City Council","http://opendatacommunities.org/id/metropolitan-district-council/wolverhampton","GO CARZ","18.15","Admin & Support","4121","Client Transport","03/07/2017"
"Wolverhampton City Council","http://opendatacommunities.org/id/metropolitan-district-council/wolverhampton","VERIFONE TAXI/PRIVATE","27.50","Admin & Support","4121","Client Transport","03/07/2017"
"Wolverhampton City Council","http://opendatacommunities.org/id/metropolitan-district-council/wolverhampton","AMAZON.CO.UK","48.41","EIP Locality 8","5999","Equipment - Purchase","03/07/2017"
"Wolverhampton City Council","http://opendatacommunities.org/id/metropolitan-district-council/wolverhampton","B&M RETAIL","19.99","EIP Locality 8","5310","Grant Payments","03/07/2017"
"Wolverhampton City Council","http://opendatacommunities.org/id/metropolitan-district-council/wolverhampton","Amazon UK Marketplace","2.63","EIP Locality 8","5942","Equipment - Purchase","03/07/2017"
"Wolverhampton City Council","http://opendatacommunities.org/id/metropolitan-district-council/wolverhampton","WWW.PIVOTELL.CO.UK","105.49","LAC Transitions Team","5047","Client Allowances","03/07/2017"
"Wolverhampton City Council","http://opendatacommunities.org/id/metropolitan-district-council/wolverhampton","WOLVERHAMPTON","20.30","Strategic Director Place","5811","Hospitality","03/07/2017"
"Wolverhampton City Council","http://opendatacommunities.org/id/metropolitan-district-council/wolverhampton","HOMEBASE LTD 103","7.87","Children & Family Contact Services","5211","Materials","03/07/2017"
"Wolverhampton City Council","http://opendatacommunities.org/id/metropolitan-district-council/wolverhampton","ALDI","25.00","Children & Family Contact Services","5411","Provisions (Not for resale)","03/07/2017"
"Wolverhampton City Council","http://opendatacommunities.org/id/metropolitan-district-council/wolverhampton","POST OFFICE COUNTER","11.70","Head of Service - CINCP","9402","Comms - Postage","03/07/2017"
"Wolverhampton City Council","http://opendatacommunities.org/id/metropolitan-district-council/wolverhampton","WWW.ICO.GOV.UK","35.00","Members Expenses","9399","Services - Fees and Charges","03/07/2017"
"Wolverhampton City Council","http://opendatacommunities.org/id/metropolitan-district-council/wolverhampton","AMAZON.CO.UK","1.97","EIP Locality 3","5999","Financial Assistance In Exceptional Circ","03/07/2017"
"Wolverhampton City Council","http://opendatacommunities.org/id/metropolitan-district-council/wolverhampton","AMAZON UK RETAIL AMAZO","6.49","EIP Locality 3","5999","Financial Assistance In Exceptional Circ","03/07/2017"
"Wolverhampton City Council","http://opendatacommunities.org/id/metropolitan-district-council/wolverhampton","AMAZON UK RETAIL AMAZO","9.29","EIP Locality 3","5999","Financial Assistance In Exceptional Circ","03/07/2017"
"Wolverhampton City Council","http://opendatacommunities.org/id/metropolitan-district-council/wolverhampton","Amazon UK Marketplace","1.33","EIP Locality 3","5942","Financial Assistance In Exceptional Circ","03/07/2017"
"Wolverhampton City Council","http://opendatacommunities.org/id/metropolitan-district-council/wolverhampton","TRAINLINE","-50.10","CIN/CP Social Work Unit - Area 8","4112","Public Transport","03/07/2017"
"Wolverhampton City Council","http://opendatacommunities.org/id/metropolitan-district-council/wolverhampton","TRAINLINE","-186.00","CIN/CP Social Work Unit - Area 8","4112","Public Transport","03/07/2017"
"Wolverhampton City Council","http://opendatacommunities.org/id/metropolitan-district-council/wolverhampton","Trainline","15.25","CIN/CP Social Work Unit - Area 7","4112","Client Transport","03/07/2017"
"Wolverhampton City Council","http://opendatacommunities.org/id/metropolitan-district-council/wolverhampton","Trainline","262.75","CIN/CP Social Work Unit - Area 8","4112","Public Transport","03/07/2017"
"Wolverhampton City Council","http://opendatacommunities.org/id/metropolitan-district-council/wolverhampton","WWW.LABC.UK.COM","80.00","Building Consultancy","7399","Services - Professional Fees","03/07/2017"
"Wolverhampton City Council","http://opendatacommunities.org/id/metropolitan-district-council/wolverhampton","AMZ Neway-UK","-16.98","Members Expenses","5999","Equipment - Purchase","03/07/2017"
"Wolverhampton City Council","http://opendatacommunities.org/id/metropolitan-district-council/wolverhampton","WM MORRISONS","12.76","CIN/CP Social Work Unit - Area 5","5411","No Recourse to Public Funds","03/07/2017"
"Wolverhampton City Council","http://opendatacommunities.org/id/metropolitan-district-council/wolverhampton","PREMIER INN","457.50","Homeless Families","3811","Accommodation Costs","03/07/2017"
"Wolverhampton City Council","http://opendatacommunities.org/id/metropolitan-district-council/wolverhampton","WWW.ICO.GOV.UK","35.00","Members Expenses","9399","Services - Fees and Charges","03/07/2017"
"Wolverhampton City Council","http://opendatacommunities.org/id/metropolitan-district-council/wolverhampton","WWW.ICO.GOV.UK","35.00","Members Expenses","9399","Services - Fees and Charges","03/07/2017"
"Wolverhampton City Council","http://opendatacommunities.org/id/metropolitan-district-council/wolverhampton","WWW.ICO.GOV.UK","35.00","Members Expenses","9399","Services - Fees and Charges","03/07/2017"
"Wolverhampton City Council","http://opendatacommunities.org/id/metropolitan-district-council/wolverhampton","WWW.ICO.GOV.UK","35.00","Members Expenses","9399","Services - Fees and Charges","03/07/2017"
"Wolverhampton City Council","http://opendatacommunities.org/id/metropolitan-district-council/wolverhampton","WWW.ICO.GOV.UK","35.00","Members Expenses","9399","Services - Fees and Charges","03/07/2017"
"Wolverhampton City Council","http://opendatacommunities.org/id/metropolitan-district-council/wolverhampton","WWW.ICO.GOV.UK","35.00","Members Expenses","9399","Services - Fees and Charges","03/07/2017"
"Wolverhampton City Council","http://opendatacommunities.org/id/metropolitan-district-council/wolverhampton","CT WOLVERHAMPTON","25.00","CIN/CP Social Work Unit - Area 5","8398","Services - Supplies & Services to users","03/07/2017"
"Wolverhampton City Council","http://opendatacommunities.org/id/metropolitan-district-council/wolverhampton","GOOGLE  SVCSAPPS_wolve","6.60","Civic Halls Non Direct Management A/C","5968","Subscriptions","03/07/2017"
"Wolverhampton City Council","http://opendatacommunities.org/id/metropolitan-district-council/wolverhampton","FACEBK 7623WBEF92","51.26","Audience Development","7311","Marketing \ Non-staff advertising","03/07/2017"
"Wolverhampton City Council","http://opendatacommunities.org/id/metropolitan-district-council/wolverhampton","FACEBK 6623WBEF92","70.87","Audience Development","7311","Marketing \ Non-staff advertising","03/07/2017"
"Wolverhampton City Council","http://opendatacommunities.org/id/metropolitan-district-council/wolverhampton","CUMMINGS BROTHERS LOCK","6.00","Ernest Bold Court","7399","Equipment - Purchase","03/07/2017"
"Wolverhampton City Council","http://opendatacommunities.org/id/metropolitan-district-council/wolverhampton","WWW.NEXTDAYCOFFEE.CO.U","54.87","EIP Locality 1","5499","Catering","03/07/2017"
"Wolverhampton City Council","http://opendatacommunities.org/id/metropolitan-district-council/wolverhampton","AMZ Iconik Europe","-54.16","Vulnerable Young Persons Team","5999","Equipment - Purchase","03/07/2017"
"Wolverhampton City Council","http://opendatacommunities.org/id/metropolitan-district-council/wolverhampton","Amazon UK Marketplace","11.57","Towers Outdoor Education Centre","5942","Equipment - Purchase","03/07/2017"
"Wolverhampton City Council","http://opendatacommunities.org/id/metropolitan-district-council/wolverhampton","O E METCALFE","618.85","Towers Outdoor Education Centre","5499","Catering","03/07/2017"
"Wolverhampton City Council","http://opendatacommunities.org/id/metropolitan-district-council/wolverhampton","Cross Country Trains","7.40","Commissioning Disabilities","4112","Public Transport","03/07/2017"
"Wolverhampton City Council","http://opendatacommunities.org/id/metropolitan-district-council/wolverhampton","Wix.com","46.57","Technical Support","5817","Computing - Purchase of Software","03/07/2017"
"Wolverhampton City Council","http://opendatacommunities.org/id/metropolitan-district-council/wolverhampton","B & Q 1243","-24.16","Ernest Bold Court","5211","Equipment - R & M","03/07/2017"
"Wolverhampton City Council","http://opendatacommunities.org/id/metropolitan-district-council/wolverhampton","B & Q 1243","26.67","Ernest Bold Court","5211","Equipment - R & M","03/07/2017"
"Wolverhampton City Council","http://opendatacommunities.org/id/metropolitan-district-council/wolverhampton","B & Q 1243","24.16","Ernest Bold Court","5211","Equipment - R & M","03/07/2017"
"Wolverhampton City Council","http://opendatacommunities.org/id/metropolitan-district-council/wolverhampton","ASDA HOME SHOPPING","97.49","Ernest Bold Court","5411","Provisions (Not for resale)","03/07/2017"
"Wolverhampton City Council","http://opendatacommunities.org/id/metropolitan-district-council/wolverhampton","GO CARZ","5.35","Head of Service - CINCP","4121","Client Transport","03/07/2017"
